{"text_format":"1","workbook":"xlsx","n_sheets":28,"sheets":["COVER","DESKRIPSI PROYEK","PROFIL","IDENTITAS","Data Siswa","ISI1","PROYEK1","PENILAIAN1","CAT1","RAPOR","ISI2","PROYEK2","PENILAIAN2","ISI3","PROYEK3","PENILAIAN3","ISI4","PROYEK4","PENILAIAN4","ISI5","PROYEK5","PENILAIAN5","ISI6","PROYEK6","PENILAIAN6","DIMEL","ELSUBFASE","RAWDATA"],"not_rendered":{"charts":0,"images":9,"macros":1,"external_links":1,"defined_names":32,"comments":2,"pivot_tables":0},"unopened":[],"bounds":{"document_bytes":16777216,"sheet_cells":100000,"rows_first":2000,"rows_last":500,"rows_between":2000,"halvings":0,"cell_chars":16384,"cell_head_chars":4096},"cells_cut":0,"cells_raw":0,"read":"whole","date_system":"1900"}

{"sheet":"COVER","index":0,"n_rows":20,"n_cols":17,"rows_kept":20,"cut":false,"hidden":false,"merged":[[16,16,16,21],[2,1,2,13],[4,1,4,13],[9,16,14,19],[3,1,3,13],[15,16,15,21]]}
[]
[]
[null,"PENILAIAN PROYEK"]
[null,"PENGUATAN PROFIL PELAJAR PANCASILA"]
[null,"PROGRAM SEKOLAH PENGGERAK"]
[]
[]
[]
[]
[null,null,null,null,null,null,null,null,null,null,null,null,null,null,null,null,"Aplikasi Penilaian Proyek ini bisa digunakan untuk Penilaian Jenjang PAUD sampai SMA,          Fase A sampai E pada       Program Sekolah Penggerak"]
[]
[]
[]
[]
[]
[null,null,null,null,null,null,null,null,null,null,null,null,null,null,null,null,"*) Sesuai dengan Kepmendikbudristek No. 56/M/2022"]
[null,null,null,null,null,null,null,null,null,null,null,null,null,null,null,null,"*) Sesuai dengan Keputusan KBTSAP No.009/H/KR/2022"]
[]
[]
[null,null,null,null,null,"Dibuat oleh Ayu Chandra Astari - 088805566108"]

{"sheet":"DESKRIPSI PROYEK","index":1,"n_rows":31,"n_cols":17,"rows_kept":31,"cut":false,"hidden":false,"merged":[[31,2,36,12],[6,8,8,12],[2,1,2,13],[3,1,3,13],[5,8,5,12],[11,2,16,12],[21,2,26,12]]}
[]
[]
[null,"DESKRIPSI ",null,null,null,null,null,null,null,null,null,null,null,null,null,null,"CONTOH DESKRIPSI 1"]
[null,"PROYEK PENGUATAN PROFIL PELAJAR PANCASILA"]
[null,null,null,null,null,null,null,null,null,null,null,null,null,null,null,null,"CONTOH DESKRIPSI 2"]
[null,null,"Fase",{"$f":"\": \"&IDENTITAS!D20","v":": "},null,null,null,null,"Petunjuk"]
[null,null,"Kelas",{"$f":"\": \"&IDENTITAS!D19","v":": "},null,null,null,null,"Tuliskan secara singkat tentang deskripsi proyek yang dilakukan di sekolah anda pada tempat yang tersedia. Isikan sesuai dengan jumlah proyek yang anda lakukan selama 1 tahun ajaran"]
[null,null,"T.A.",{"$f":"\": \"&IDENTITAS!D21","v":": "}]
[]
[null,null,"Judul Proyek 1",null,{"$f":"\": \"&IDENTITAS!H5","v":": "}]
[null,null,"Deskripsi",null,":"]
[]
[]
[]
[]
[]
[]
[]
[]
[null,null,"Judul Proyek 2",null,{"$f":"\": \"&IDENTITAS!H7","v":": "}]
[null,null,"Deskripsi",null,":"]
[]
[]
[]
[]
[]
[]
[]
[]
[null,null,"Judul Proyek 3",null,{"$f":"\": \"&IDENTITAS!H9","v":": "}]
[null,null,"Deskripsi",null,":"]

{"sheet":"PROFIL","index":2,"n_rows":16,"n_cols":5,"rows_kept":16,"cut":false,"hidden":false,"merged":[[2,2,2,13]]}
[]
[]
[null,null,"PROFIL PENGEMBANG"]
[]
[null,null,"Nama",null,": Ayu Chandra Astari, S.Pd., M.Pd."]
[null,null,"Tempat/Tgl Lahir",null,": Malang, 6 November 1985"]
[null,null,"Unit Kerja",null,": SDN Oro-Oro Ombo 02 "]
[null,null,"Kota",null,": Kota Batu"]
[null,null,"Provinsi",null,": Jawa Timur"]
[null,null,"Jabatan",null,": Guru Kelas"]
[null,null,"Pendidikan Terakhir",null,": Magister Pendidikan Dasar Konsentrasi Guru Kelas"]
[null,null,"LPTK",null,": Universitas Negeri Malang"]
[null,null,"Handphone",null,": 088805566108 / 081331542365 "]
[null,null,"Email",null,": ayuchandraastari@gmail.com "]
[null,null,"Pengalaman",null,": Instruktur Program Sekolah Penggerak Tahap I Tahun 2021"]
[null,null,null,null,": Narasumber Rumpun Kurikulum Bimtek Fasilitator Sekolah Penggerak Tahap 2 Tahun 2022"]

{"sheet":"IDENTITAS","index":3,"n_rows":22,"n_cols":8,"rows_kept":22,"cut":false,"hidden":false,"merged":[[8,6,9,6],[8,7,9,7],[10,6,11,6],[10,7,11,7],[1,0,1,8],[4,6,5,6],[4,7,5,7],[6,6,7,6],[6,7,7,7]]}
[]
["IDENTITAS SEKOLAH"]
[]
[null,"Nama Sekolah",":",null,null,null,"No","JUDUL PROYEK"]
[null,"NPSN",":",null,null,null,1]
[null,"NSS",":"]
[null,"Alamat Sekolah",":",null,null,null,2]
[null,"Kode Pos",":"]
[null,"Desa / Kelurahan",":",null,null,null,3]
[null,"Kecamatan",":"]
[null,"Kabupaten / Kota",":"]
[null,"Provinsi",":"]
[null,"Website",":",null,null,null,"1. ","Tuliskan Judul Proyek yang anda lakukan di sekolah anda"]
[null,"E-mail",":",null,null,null,null,"dalam 1 tahun ajaran"]
[null,"Nama Kepala Sekolah",":",null,null,null,"2.","Untuk Pengisian NIP diawal dengan tanda koma atas (')"]
[null,"NIP",":",null,null,null,"3.","Isilah pada kolom yang berwarna putih saja"]
[null,"Nama Guru Kelas",":"]
[null,"NIP",":"]
[null,"Kelas",":"]
[null,"Fase",":",null,null,null,null,"Kembali ke halaman awal"]
[null,"Tahun Pelajaran",":",null,null,null,null,"Kembali ke halaman sebelumnya"]
[null,"Tempat/Tanggal Rapor",":"]

{"sheet":"Data Siswa","index":4,"n_rows":55,"n_cols":10,"rows_kept":55,"cut":false,"hidden":false,"merged":[[1,6,3,6],[1,7,3,7],[1,8,3,8],[1,9,3,9],[1,0,3,0],[1,1,3,1],[1,2,3,2],[1,3,3,3],[1,4,3,4],[1,5,3,5]]}
[]
["NO","NIS","NISN","NAMA PESERTA DIDIK","L/P","TEMPAT LAHIR","TANGGAL LAHIR","AGAMA","PENDIDIKAN SEBELUMNYA","ALAMAT PESERTA DIDIK"]
[]
[]
[1,2,3,4,5,6,7,8,9,10]
[1]
[2]
[3]
[4]
[5]
[6]
[7]
[8]
[9]
[10]
[11]
[12]
[13]
[14]
[15]
[16]
[17]
[18]
[19]
[20]
[21]
[22]
[23]
[24]
[25]
[26]
[27]
[28]
[29]
[30]
[31]
[32]
[33]
[34]
[35]
[36]
[37]
[38]
[39]
[40]
[41]
[42]
[43]
[44]
[45]
[46]
[47]
[48]
[49]
[50]

{"sheet":"ISI1","index":5,"n_rows":19,"n_cols":13,"rows_kept":19,"cut":false,"hidden":false,"merged":[[2,1,2,16],[3,1,3,16],[7,12,14,14],[8,2,14,4]]}
[]
[]
[null,"DATA KEGIATAN 1"]
[null,"PROYEK PENGUATAN PROFIL PELAJAR PANCASILA"]
[]
[null,null,null,null,null,null,"Judul Proyek 1",null,{"$f":"\": \"&IDENTITAS!H5","v":": "}]
[]
[null,null,null,null,null,null,null,null,null,null,null,null,"Silahkan input penilaian akhir siswa tiap sub elemen sesuai dengan capaian per fasenya berdasarkan jurnal pendidik, portolio peserta didik, dll."]
[null,null,"Silahkan input data Proyek 1 sesuai dengan yang sudah diidentifikasi pada modul proyek anda"]
[]
[]
[]
[]
[]
[]
[]
[]
[null,null,null,null,null,null,null,"Kembali ke halaman awal"]
[null,null,null,null,null,null,null,"Kembali ke halaman sebelumnya"]

{"sheet":"PROYEK1","index":6,"n_rows":49,"n_cols":16,"rows_kept":49,"cut":false,"hidden":false,"merged":[[40,2,41,4],[40,6,41,8],[40,10,41,13],[40,15,41,19],[46,2,47,4],[46,6,47,8],[46,10,47,13],[46,15,47,19],[42,2,44,4],[42,6,44,8],[42,10,44,13],[42,15,44,19],[22,2,23,4],[22,6,23,8],[22,10,23,13],[22,15,23,19],[28,2,29,4],[28,6,29,8],[28,10,29,13],[28,15,29,19],[2,2,2,19],[10,2,11,4],[10,6,11,8],[10,10,11,13],[10,15,11,19],[5,4,5,8],[18,10,20,13],[24,2,26,4],[24,6,26,8],[24,10,26,13],[12,15,14,19],[18,15,20,19],[24,15,26,19],[12,10,14,13],[12,2,14,4],[12,6,14,8],[18,2,20,4],[18,6,20,8],[16,2,17,4],[16,6,17,8],[16,10,17,13],[16,15,17,19],[48,2,50,4],[48,6,50,8],[48,10,50,13],[48,15,50,19],[30,2,32,4],[30,6,32,8],[30,10,32,13],[30,15,32,19],[36,2,38,4],[36,6,38,8],[36,10,38,13],[36,15,38,19],[34,2,35,4],[34,6,35,8],[34,10,35,13],[34,15,35,19]]}
[]
[]
[null,null,"INPUT DIMENSI, ELEMEN, DAN SUB ELEMEN PROYEK 1"]
[]
[]
[null,null,"Judul Proyek 1",null,{"$f":"IDENTITAS!H5","v":0},null,null,null,null,null,null,null,null,"Silahkan pilih dimensi, elemen dan sub elemen yang anda gunakan pada"]
[null,null,"Fase",null,null,null,null,null,null,null,null,null,null,"Proyek 1 Penguatan Profil Pelajar Pancasila secara berurutan dari Dimensi,"]
[null,null,"Kelas",null,null,null,null,null,null,null,null,null,null,"Elemen dan Sub Elemen (dari kiri ke kanan). Jangan lupa pilih fase."]
[null,null,null,null,null,null,null,null,null,null,null,null,null,"Capaian Tiap Fase akan berubah otomatis, tidak perlu diubah."]
[]
[null,null,"Dimensi 1",null,null,null,"Elemen 1",null,null,null,"Sub Elemen 1",null,null,null,null,{"$f":"\"Capaian Fase \"&$E$7","v":"Capaian Fase "}]
[]
[null,null,null,null,null,null,null,null,null,null,null,null,null,null,null,{"$f":"INDEX(ELSUBFASE!$C$11:$H$52,MATCH(PROYEK1!K13,ELSUBFASE!$B$11:$B$52,0),MATCH(PROYEK1!E7,ELSUBFASE!$C$10:$H$10,0))","v":{"$error":"#N/A"}}]
[]
[]
[]
[null,null,"Dimensi 2",null,null,null,"Elemen 2",null,null,null,"Sub Elemen 2",null,null,null,null,{"$f":"\"Capaian Fase \"&$E$7","v":"Capaian Fase "}]
[]
[null,null,null,null,null,null,null,null,null,null,null,null,null,null,null,{"$f":"INDEX(ELSUBFASE!C11:H52,MATCH(PROYEK1!K19,ELSUBFASE!B11:B52,0),MATCH(PROYEK1!E7,ELSUBFASE!C10:H10,0))","v":{"$error":"#N/A"}}]
[]
[]
[]
[null,null,"Dimensi 3",null,null,null,"Elemen 3",null,null,null,"Sub Elemen 3",null,null,null,null,{"$f":"\"Capaian Fase \"&$E$7","v":"Capaian Fase "}]
[]
[null,null,null,null,null,null,null,null,null,null,null,null,null,null,null,{"$f":"INDEX(ELSUBFASE!C11:H52,MATCH(PROYEK1!K25,ELSUBFASE!B11:B52,0),MATCH(PROYEK1!E7,ELSUBFASE!C10:H10,0))","v":{"$error":"#N/A"}}]
[]
[]
[]
[null,null,"Dimensi 4",null,null,null,"Elemen 4",null,null,null,"Sub Elemen 4",null,null,null,null,{"$f":"\"Capaian Fase \"&$E$7","v":"Capaian Fase "}]
[]
[null,null,null,null,null,null,null,null,null,null,null,null,null,null,null,{"$f":"INDEX(ELSUBFASE!C11:H52,MATCH(PROYEK1!K31,ELSUBFASE!B11:B52,0),MATCH(PROYEK1!E7,ELSUBFASE!C10:H10,0))","v":{"$error":"#N/A"}}]
[]
[]
[]
[null,null,"Dimensi 5",null,null,null,"Elemen 5",null,null,null,"Sub Elemen 5",null,null,null,null,{"$f":"\"Capaian Fase \"&$E$7","v":"Capaian Fase "}]
[]
[null,null,null,null,null,null,null,null,null,null,null,null,null,null,null,{"$f":"INDEX(ELSUBFASE!C11:H52,MATCH(PROYEK1!K37,ELSUBFASE!B11:B52,0),MATCH(PROYEK1!E7,ELSUBFASE!C10:H10,0))","v":{"$error":"#N/A"}}]
[]
[]
[]
[null,null,"Dimensi 6",null,null,null,"Elemen 6",null,null,null,"Sub Elemen 6",null,null,null,null,{"$f":"\"Capaian Fase \"&$E$7","v":"Capaian Fase "}]
[]
[null,null,null,null,null,null,null,null,null,null,null,null,null,null,null,{"$f":"INDEX(ELSUBFASE!C11:H52,MATCH(PROYEK1!K43,ELSUBFASE!B11:B52,0),MATCH(PROYEK1!E7,ELSUBFASE!C10:H10,0))","v":{"$error":"#N/A"}}]
[]
[]
[]
[null,null,"Dimensi 7",null,null,null,"Elemen 7",null,null,null,"Sub Elemen 7",null,null,null,null,{"$f":"\"Capaian Fase \"&$E$7","v":"Capaian Fase "}]
[]
[null,null,null,null,null,null,null,null,null,null,null,null,null,null,null,{"$f":"INDEX(ELSUBFASE!C11:H52,MATCH(PROYEK1!K49,ELSUBFASE!B11:B52,0),MATCH(PROYEK1!E7,ELSUBFASE!C10:H10,0))","v":{"$error":"#N/A"}}]

{"sheet":"PENILAIAN1","index":7,"n_rows":63,"n_cols":32,"rows_kept":63,"cut":false,"hidden":false,"merged":[[10,24,10,27],[10,28,10,31],[10,2,12,2],[10,3,12,3],[2,2,2,31],[11,28,11,31],[11,4,11,7],[11,8,11,11],[11,12,11,15],[11,16,11,19],[11,20,11,23],[11,24,11,27],[10,4,10,7],[10,8,10,11],[10,12,10,15],[10,16,10,19],[10,20,10,23]]}
[]
[]
[null,null,"PENILAIAN PADA PROYEK 1"]
[]
[null,"Judul Proyek 1",null,{"$f":"IDENTITAS!H5","v":0},null,"Keterangan:",null,null,null,null,null,null,null,null,null,null,null,null,"Petunjuk"]
[null,"Fase",null,{"$f":"PROYEK1!E7","v":0},null,"BB","Belum Berkembang",null,null,null,null,null,null,null,null,null,null,null,"Berikan tanda V pada salah satu kolom yang dicapai peserta didik pada capaian "]
[null,"Kelas",null,{"$f":"PROYEK1!E8","v":0},null,"MB","Mulai Berkembang",null,null,null,null,null,null,null,null,null,null,null,"sub elemen per fase. Sesuaikan dengan rubrik penilaian dengan mempertimbangkan "]
[null,"Tahun Ajaran",null,{"$f":"IDENTITAS!$D$21","v":0},null,"BSH","Berkembang Sesuai Harapan",null,null,null,null,null,null,null,null,null,null,null,"jurnal guru, portofolio siswa, dan lain sebagainya."]
[null,null,null,null,null,"SB","Sangat Berkembang",null,null,null,null,null,null,null,null,null,null,null,"Note : Ketikkan huruf  V (kapital) sehingga terbaca pada bagian rapor"]
[]
[null,null,"NO","NAMA",{"$f":"PROYEK1!C13","v":0},null,null,null,{"$f":"PROYEK1!C19","v":0},null,null,null,{"$f":"PROYEK1!C25","v":0},null,null,null,{"$f":"PROYEK1!C31","v":0},null,null,null,{"$f":"PROYEK1!C37","v":0},null,null,null,{"$f":"PROYEK1!C43","v":0},null,null,null,{"$f":"PROYEK1!C49","v":0}]
[null,null,null,null,{"$f":"PROYEK1!P13","v":{"$error":"#N/A"}},null,null,null,{"$f":"PROYEK1!P19","v":{"$error":"#N/A"}},null,null,null,{"$f":"PROYEK1!P25","v":{"$error":"#N/A"}},null,null,null,{"$f":"PROYEK1!P31","v":{"$error":"#N/A"}},null,null,null,{"$f":"PROYEK1!P37","v":{"$error":"#N/A"}},null,null,null,{"$f":"PROYEK1!P43","v":{"$error":"#N/A"}},null,null,null,{"$f":"PROYEK1!P49","v":{"$error":"#N/A"}}]
[null,null,null,null,"BB","MB","BSH","SB","BB","MB","BSH","SB","BB","MB","BSH","SB","BB","MB","BSH","SB","BB","MB","BSH","SB","BB","MB","BSH","SB","BB","MB","BSH","SB"]
[null,null,1,{"$f":"'Data Siswa'!D6","v":0}]
[null,null,2,{"$f":"'Data Siswa'!D7","v":0}]
[null,null,3,{"$f":"'Data Siswa'!D8","v":0}]
[null,null,4,{"$f":"'Data Siswa'!D9","v":0}]
[null,null,5,{"$f":"'Data Siswa'!D10","v":0}]
[null,null,6,{"$f":"'Data Siswa'!D11","v":0}]
[null,null,7,{"$f":"'Data Siswa'!D12","v":0}]
[null,null,8,{"$f":"'Data Siswa'!D13","v":0}]
[null,null,9,{"$f":"'Data Siswa'!D14","v":0}]
[null,null,10,{"$f":"'Data Siswa'!D15","v":0}]
[null,null,11,{"$f":"'Data Siswa'!D16","v":0}]
[null,null,12,{"$f":"'Data Siswa'!D17","v":0}]
[null,null,13,{"$f":"'Data Siswa'!D18","v":0}]
[null,null,14,{"$f":"'Data Siswa'!D19","v":0}]
[null,null,15,{"$f":"'Data Siswa'!D20","v":0}]
[null,null,16,{"$f":"'Data Siswa'!D21","v":0}]
[null,null,17,{"$f":"'Data Siswa'!D22","v":0}]
[null,null,18,{"$f":"'Data Siswa'!D23","v":0}]
[null,null,19,{"$f":"'Data Siswa'!D24","v":0}]
[null,null,20,{"$f":"'Data Siswa'!D25","v":0}]
[null,null,21,{"$f":"'Data Siswa'!D26","v":0}]
[null,null,22,{"$f":"'Data Siswa'!D27","v":0}]
[null,null,23,{"$f":"'Data Siswa'!D28","v":0}]
[null,null,24,{"$f":"'Data Siswa'!D29","v":0}]
[null,null,25,{"$f":"'Data Siswa'!D30","v":0}]
[null,null,26,{"$f":"'Data Siswa'!D31","v":0}]
[null,null,27,{"$f":"'Data Siswa'!D32","v":0}]
[null,null,28,{"$f":"'Data Siswa'!D33","v":0}]
[null,null,29,{"$f":"'Data Siswa'!D34","v":0}]
[null,null,30,{"$f":"'Data Siswa'!D35","v":0}]
[null,null,31,{"$f":"'Data Siswa'!D36","v":0}]
[null,null,32,{"$f":"'Data Siswa'!D37","v":0}]
[null,null,33,{"$f":"'Data Siswa'!D38","v":0}]
[null,null,34,{"$f":"'Data Siswa'!D39","v":0}]
[null,null,35,{"$f":"'Data Siswa'!D40","v":0}]
[null,null,36,{"$f":"'Data Siswa'!D41","v":0}]
[null,null,37,{"$f":"'Data Siswa'!D42","v":0}]
[null,null,38,{"$f":"'Data Siswa'!D43","v":0}]
[null,null,39,{"$f":"'Data Siswa'!D44","v":0}]
[null,null,40,{"$f":"'Data Siswa'!D45","v":0}]
[null,null,41,{"$f":"'Data Siswa'!D46","v":0}]
[null,null,42,{"$f":"'Data Siswa'!D47","v":0}]
[null,null,43,{"$f":"'Data Siswa'!D48","v":0}]
[null,null,44,{"$f":"'Data Siswa'!D49","v":0}]
[null,null,45,{"$f":"'Data Siswa'!D50","v":0}]
[null,null,46,{"$f":"'Data Siswa'!D51","v":0}]
[null,null,47,{"$f":"'Data Siswa'!D52","v":0}]
[null,null,48,{"$f":"'Data Siswa'!D53","v":0}]
[null,null,49,{"$f":"'Data Siswa'!D54","v":0}]
[null,null,50,{"$f":"'Data Siswa'!D55","v":0}]

{"sheet":"CAT1","index":8,"n_rows":62,"n_cols":7,"rows_kept":62,"cut":false,"hidden":false,"merged":[[9,4,9,6],[9,2,11,2],[9,3,11,3],[2,1,2,7],[3,1,3,7],[5,5,7,6]]}
[]
[]
[null,"CATATAN PROSES"]
[null,"PROYEK PENGUATAN PROFIL PELAJAR PANCASILA"]
[]
[null,null,null,"CONTOH CATATAN PROSES 1",null,"Silahkan input catatan proses pelaksanaan proyek tiap siswa per proyek berdasarkan data observasi, catatan kaki, jurnal pendidik, portofolio peserta, dll"]
[]
[null,null,null,"CONTOH CATATAN PROSES 2"]
[]
[null,null,"No","Nama","CATATAN PROSES"]
[null,null,null,null,"Proyek 1","Proyek 2","Proyek 3"]
[null,null,null,null,{"$f":"IDENTITAS!H5","v":0},{"$f":"IDENTITAS!H7","v":0},{"$f":"IDENTITAS!H9","v":0}]
[null,null,1,{"$f":"'Data Siswa'!D6","v":0}]
[null,null,2,{"$f":"'Data Siswa'!D7","v":0}]
[null,null,3,{"$f":"'Data Siswa'!D8","v":0}]
[null,null,4,{"$f":"'Data Siswa'!D9","v":0}]
[null,null,5,{"$f":"'Data Siswa'!D10","v":0}]
[null,null,6,{"$f":"'Data Siswa'!D11","v":0}]
[null,null,7,{"$f":"'Data Siswa'!D12","v":0}]
[null,null,8,{"$f":"'Data Siswa'!D13","v":0}]
[null,null,9,{"$f":"'Data Siswa'!D14","v":0}]
[null,null,10,{"$f":"'Data Siswa'!D15","v":0}]
[null,null,11,{"$f":"'Data Siswa'!D16","v":0}]
[null,null,12,{"$f":"'Data Siswa'!D17","v":0}]
[null,null,13,{"$f":"'Data Siswa'!D18","v":0}]
[null,null,14,{"$f":"'Data Siswa'!D19","v":0}]
[null,null,15,{"$f":"'Data Siswa'!D20","v":0}]
[null,null,16,{"$f":"'Data Siswa'!D21","v":0}]
[null,null,17,{"$f":"'Data Siswa'!D22","v":0}]
[null,null,18,{"$f":"'Data Siswa'!D23","v":0}]
[null,null,19,{"$f":"'Data Siswa'!D24","v":0}]
[null,null,20,{"$f":"'Data Siswa'!D25","v":0}]
[null,null,21,{"$f":"'Data Siswa'!D26","v":0}]
[null,null,22,{"$f":"'Data Siswa'!D27","v":0}]
[null,null,23,{"$f":"'Data Siswa'!D28","v":0}]
[null,null,24,{"$f":"'Data Siswa'!D29","v":0}]
[null,null,25,{"$f":"'Data Siswa'!D30","v":0}]
[null,null,26,{"$f":"'Data Siswa'!D31","v":0}]
[null,null,27,{"$f":"'Data Siswa'!D32","v":0}]
[null,null,28,{"$f":"'Data Siswa'!D33","v":0}]
[null,null,29,{"$f":"'Data Siswa'!D34","v":0}]
[null,null,30,{"$f":"'Data Siswa'!D35","v":0}]
[null,null,31,{"$f":"'Data Siswa'!D36","v":0}]
[null,null,32,{"$f":"'Data Siswa'!D37","v":0}]
[null,null,33,{"$f":"'Data Siswa'!D38","v":0}]
[null,null,34,{"$f":"'Data Siswa'!D39","v":0}]
[null,null,35,{"$f":"'Data Siswa'!D40","v":0}]
[null,null,36,{"$f":"'Data Siswa'!D41","v":0}]
[null,null,37,{"$f":"'Data Siswa'!D42","v":0}]
[null,null,38,{"$f":"'Data Siswa'!D43","v":0}]
[null,null,39,{"$f":"'Data Siswa'!D44","v":0}]
[null,null,40,{"$f":"'Data Siswa'!D45","v":0}]
[null,null,41,{"$f":"'Data Siswa'!D46","v":0}]
[null,null,42,{"$f":"'Data Siswa'!D47","v":0}]
[null,null,43,{"$f":"'Data Siswa'!D48","v":0}]
[null,null,44,{"$f":"'Data Siswa'!D49","v":0}]
[null,null,45,{"$f":"'Data Siswa'!D50","v":0}]
[null,null,46,{"$f":"'Data Siswa'!D51","v":0}]
[null,null,47,{"$f":"'Data Siswa'!D52","v":0}]
[null,null,48,{"$f":"'Data Siswa'!D53","v":0}]
[null,null,49,{"$f":"'Data Siswa'!D54","v":0}]
[null,null,50,{"$f":"'Data Siswa'!D55","v":0}]

{"sheet":"RAPOR","index":9,"n_rows":229,"n_cols":13,"rows_kept":229,"cut":false,"hidden":false,"merged":[[124,1,124,9],[125,1,128,5],[125,6,128,6],[125,7,128,7],[125,8,128,8],[125,9,128,9],[119,1,119,9],[154,1,154,9],[152,9,153,9],[152,8,153,8],[152,7,153,7],[152,6,153,6],[152,1,153,5],[142,1,149,9],[129,1,129,9],[130,1,133,5],[130,6,133,6],[130,7,133,7],[130,8,133,8],[130,9,133,9],[120,1,123,5],[120,6,123,6],[120,7,123,7],[120,8,123,8],[159,1,159,9],[155,9,158,9],[155,8,158,8],[155,7,158,7],[155,6,158,6],[155,1,158,5],[164,1,164,9],[160,9,163,9],[160,8,163,8],[160,7,163,7],[160,6,163,6],[160,1,163,5],[170,6,173,6],[170,1,173,5],[192,1,199,9],[185,9,188,9],[185,8,188,8],[185,7,188,7],[185,6,188,6],[185,1,188,5],[184,1,184,9],[180,9,183,9],[180,8,183,8],[180,7,183,7],[180,6,183,6],[180,1,183,5],[110,8,113,8],[110,9,113,9],[179,1,179,9],[175,9,178,9],[175,8,178,8],[134,1,134,9],[135,1,138,5],[135,6,138,6],[135,7,138,7],[135,8,138,8],[135,9,138,9],[169,1,169,9],[165,9,168,9],[165,8,168,8],[165,7,168,7],[165,6,168,6],[165,1,168,5],[175,7,178,7],[175,6,178,6],[175,1,178,5],[174,1,174,9],[170,9,173,9],[170,8,173,8],[170,7,173,7],[2,1,2,9],[3,1,3,9],[85,1,88,5],[85,6,88,6],[85,7,88,7],[85,8,88,8],[85,9,88,9],[80,1,83,5],[80,6,83,6],[80,7,83,7],[80,8,83,8],[80,9,83,9],[75,1,78,5],[75,6,78,6],[60,1,63,5],[60,6,63,6],[60,7,63,7],[60,8,63,8],[60,9,63,9],[52,8,53,8],[52,9,53,9],[13,2,20,9],[24,2,31,9],[35,2,42,9],[227,4,227,5],[228,4,228,5],[219,7,219,8],[220,7,220,8],[215,7,215,8],[215,2,215,3],[222,4,222,5],[223,4,223,5],[70,9,73,9],[92,1,99,9],[214,2,214,3],[102,9,103,9],[104,1,104,9],[105,1,108,5],[105,6,108,6],[105,7,108,7],[105,8,108,8],[105,9,108,9],[102,1,103,5],[102,6,103,6],[102,7,103,7],[102,8,103,8],[120,9,123,9],[114,1,114,9],[55,1,58,5],[55,6,58,6],[55,7,58,7],[55,8,58,8],[55,9,58,9],[52,1,53,5],[52,6,53,6],[52,7,53,7],[54,1,54,9],[59,1,59,9],[204,2,204,3],[205,2,205,3],[206,2,206,3],[204,4,204,5],[205,4,205,5],[206,4,206,5],[204,6,204,7],[205,6,205,7],[206,6,206,7],[204,8,204,9],[205,8,205,9],[206,8,206,9],[202,1,202,10],[115,1,118,5],[115,6,118,6],[115,7,118,7],[115,8,118,8],[115,9,118,9],[109,1,109,9],[110,1,113,5],[110,6,113,6],[110,7,113,7],[64,1,64,9],[69,1,69,9],[74,1,74,9],[79,1,79,9],[84,1,84,9],[65,1,68,5],[65,6,68,6],[65,7,68,7],[65,8,68,8],[65,9,68,9],[75,8,78,8],[75,9,78,9],[70,1,73,5],[70,6,73,6],[70,7,73,7],[70,8,73,8],[75,7,78,7]]}
[]
[]
[null,"RAPOR PROYEK PENGUATAN",null,null,null,null,null,null,null,null,null,null,1]
[null,"PROFIL PELAJAR PANCASILA"]
[]
[]
[null,null,"Nama Sekolah",null,{"$f":"\": \"&IDENTITAS!$D$4","v":": "},null,null,null,"Kelas",{"$f":"\": \"&IDENTITAS!D19","v":": "}]
[null,null,"Alamat Sekolah",null,{"$f":"\": \"&IDENTITAS!D7","v":": "},null,null,null,"Fase",{"$f":"\": \"&IDENTITAS!D20","v":": "}]
[null,null,"Nama Siswa",null,{"$f":"\": \"&VLOOKUP(RAPOR!$M$3,'Data Siswa'!$A$6:$D$55,4,FALSE)","v":": "},null,null,null,"TA",{"$f":"\": \"&IDENTITAS!D21","v":": "}]
[null,null,"NISN",null,{"$f":"\": \"&VLOOKUP(RAPOR!$M$3,'Data Siswa'!$A$6:$D$55,3,FALSE)","v":": "}]
[]
[null,null,"PROYEK 1",{"$f":"\" \"&IDENTITAS!$H$5","v":" "}]
[]
[null,null,{"$f":"'DESKRIPSI PROYEK'!C12","v":0}]
[]
[]
[]
[]
[]
[]
[]
[]
[null,null,"PROYEK 2",{"$f":"\" \"&IDENTITAS!$H$7","v":" "}]
[]
[null,null,{"$f":"'DESKRIPSI PROYEK'!C22","v":0}]
[]
[]
[]
[]
[]
[]
[]
[]
[null,null,"PROYEK 3",{"$f":"\" \"&IDENTITAS!$H$9","v":" "}]
[]
[null,null,{"$f":"'DESKRIPSI PROYEK'!C32","v":0}]
[]
[]
[]
[]
[]
[]
[]
[]
[]
[]
[]
[]
[]
[]
[]
[]
[null,{"$f":"IDENTITAS!H5","v":0},null,null,null,null,"BB","MB","BSH","SB",null,null,{"$f":"M3","v":1}]
[]
[null,{"$f":"PROYEK1!C13","v":0}]
[null,{"$f":"PROYEK1!K13&\"- \"&PROYEK1!P13","v":{"$error":"#N/A"}},null,null,null,null,{"$f":"VLOOKUP($M$3,PENILAIAN1!$C$14:$AF$63,3,FALSE)","v":0},{"$f":"VLOOKUP($M$3,PENILAIAN1!$C$14:$AF$63,4,FALSE)","v":0},{"$f":"VLOOKUP($M$3,PENILAIAN1!$C$14:$AF$63,5,FALSE)","v":0},{"$f":"VLOOKUP($M$3,PENILAIAN1!$C$14:$AF$63,6,FALSE)","v":0}]
[]
[]
[]
[null,{"$f":"PROYEK1!C19","v":0}]
[null,{"$f":"PROYEK1!K19&\"- \"&PROYEK1!P19","v":{"$error":"#N/A"}},null,null,null,null,{"$f":"VLOOKUP($M$3,PENILAIAN1!$C$14:$AF$63,7,FALSE)","v":0},{"$f":"VLOOKUP($M$3,PENILAIAN1!$C$14:$AF$63,8,FALSE)","v":0},{"$f":"VLOOKUP($M$3,PENILAIAN1!$C$14:$AF$63,9,FALSE)","v":0},{"$f":"VLOOKUP($M$3,PENILAIAN1!$C$14:$AF$63,10,FALSE)","v":0}]
[]
[]
[]
[null,{"$f":"PROYEK1!C25","v":0}]
[null,{"$f":"PROYEK1!K25&\"- \"&PROYEK1!P25","v":{"$error":"#N/A"}},null,null,null,null,{"$f":"VLOOKUP($M$3,PENILAIAN1!$C$14:$AF$63,11,FALSE)","v":0},{"$f":"VLOOKUP($M$3,PENILAIAN1!$C$14:$AF$63,12,FALSE)","v":0},{"$f":"VLOOKUP($M$3,PENILAIAN1!$C$14:$AF$63,13,FALSE)","v":0},{"$f":"VLOOKUP($M$3,PENILAIAN1!$C$14:$AF$63,14,FALSE)","v":0}]
[]
[]
[]
[null,{"$f":"PROYEK1!C31","v":0}]
[null,{"$f":"PROYEK1!K31&\"- \"&PROYEK1!P31","v":{"$error":"#N/A"}},null,null,null,null,{"$f":"VLOOKUP($M$3,PENILAIAN1!$C$14:$AF$63,15,FALSE)","v":0},{"$f":"VLOOKUP($M$3,PENILAIAN1!$C$14:$AF$63,16,FALSE)","v":0},{"$f":"VLOOKUP($M$3,PENILAIAN1!$C$14:$AF$63,17,FALSE)","v":0},{"$f":"VLOOKUP($M$3,PENILAIAN1!$C$14:$AF$63,18,FALSE)","v":0}]
[]
[]
[]
[null,{"$f":"PROYEK1!C37","v":0}]
[null,{"$f":"PROYEK1!K37&\"- \"&PROYEK1!P37","v":{"$error":"#N/A"}},null,null,null,null,{"$f":"VLOOKUP($M$3,PENILAIAN1!$C$14:$AF$63,19,FALSE)","v":0},{"$f":"VLOOKUP($M$3,PENILAIAN1!$C$14:$AF$63,20,FALSE)","v":0},{"$f":"VLOOKUP($M$3,PENILAIAN1!$C$14:$AF$63,21,FALSE)","v":0},{"$f":"VLOOKUP($M$3,PENILAIAN1!$C$14:$AF$63,22,FALSE)","v":0}]
[]
[]
[]
[null,{"$f":"PROYEK1!C43","v":0}]
[null,{"$f":"PROYEK1!K43&\"- \"&PROYEK1!P43","v":{"$error":"#N/A"}},null,null,null,null,{"$f":"VLOOKUP($M$3,PENILAIAN1!$C$14:$AF$63,23,FALSE)","v":0},{"$f":"VLOOKUP($M$3,PENILAIAN1!$C$14:$AF$63,24,FALSE)","v":0},{"$f":"VLOOKUP($M$3,PENILAIAN1!$C$14:$AF$63,25,FALSE)","v":0},{"$f":"VLOOKUP($M$3,PENILAIAN1!$C$14:$AF$63,26,FALSE)","v":0}]
[]
[]
[]
[null,{"$f":"PROYEK1!C49","v":0}]
[null,{"$f":"PROYEK1!K49&\"- \"&PROYEK1!P49","v":{"$error":"#N/A"}},null,null,null,null,{"$f":"VLOOKUP($M$3,PENILAIAN1!$C$14:$AF$63,27,FALSE)","v":0},{"$f":"VLOOKUP($M$3,PENILAIAN1!$C$14:$AF$63,28,FALSE)","v":0},{"$f":"VLOOKUP($M$3,PENILAIAN1!$C$14:$AF$63,29,FALSE)","v":0},{"$f":"VLOOKUP($M$3,PENILAIAN1!$C$14:$AF$63,30,FALSE)","v":0}]
[]
[]
[]
[]
[null,"Catatan Proses"]
[]
[null,{"$f":"VLOOKUP($M$3,'CAT1'!$C$13:$G$62,3,FALSE)","v":0}]
[]
[]
[]
[]
[]
[]
[]
[]
[]
[null,{"$f":"IDENTITAS!H7","v":0},null,null,null,null,"BB","MB","BSH","SB",null,null,{"$f":"M3","v":1}]
[]
[null,{"$f":"PENILAIAN2!E11","v":0}]
[null,{"$f":"PROYEK2!K13&\"- \"&PROYEK2!P13","v":{"$error":"#N/A"}},null,null,null,null,{"$f":"VLOOKUP($M$3,PENILAIAN2!$C$14:$AF$63,3,FALSE)","v":0},{"$f":"VLOOKUP($M$3,PENILAIAN2!$C$14:$AF$63,4,FALSE)","v":0},{"$f":"VLOOKUP($M$3,PENILAIAN2!$C$14:$AF$63,5,FALSE)","v":0},{"$f":"VLOOKUP($M$3,PENILAIAN2!$C$14:$AF$63,6,FALSE)","v":0}]
[]
[]
[]
[null,{"$f":"PROYEK2!C19","v":0}]
[null,{"$f":"PROYEK2!K19&\"- \"&PROYEK2!P19","v":{"$error":"#N/A"}},null,null,null,null,{"$f":"VLOOKUP($M$3,PENILAIAN2!$C$14:$AF$63,7,FALSE)","v":0},{"$f":"VLOOKUP($M$3,PENILAIAN2!$C$14:$AF$63,8,FALSE)","v":0},{"$f":"VLOOKUP($M$3,PENILAIAN2!$C$14:$AF$63,9,FALSE)","v":0},{"$f":"VLOOKUP($M$3,PENILAIAN2!$C$14:$AF$63,10,FALSE)","v":0}]
[]
[]
[]
[null,{"$f":"PROYEK2!C25","v":0}]
[null,{"$f":"PROYEK2!K25&\"- \"&PROYEK2!P25","v":{"$error":"#N/A"}},null,null,null,null,{"$f":"VLOOKUP($M$3,PENILAIAN2!$C$14:$AF$63,11,FALSE)","v":0},{"$f":"VLOOKUP($M$3,PENILAIAN2!$C$14:$AF$63,12,FALSE)","v":0},{"$f":"VLOOKUP($M$3,PENILAIAN2!$C$14:$AF$63,13,FALSE)","v":0},{"$f":"VLOOKUP($M$3,PENILAIAN2!$C$14:$AF$63,14,FALSE)","v":0}]
[]
[]
[]
[null,{"$f":"PROYEK2!C31","v":0}]
[null,{"$f":"PROYEK2!K31&\"- \"&PROYEK2!P31","v":{"$error":"#N/A"}},null,null,null,null,{"$f":"VLOOKUP($M$3,PENILAIAN2!$C$14:$AF$63,15,FALSE)","v":0},{"$f":"VLOOKUP($M$3,PENILAIAN2!$C$14:$AF$63,16,FALSE)","v":0},{"$f":"VLOOKUP($M$3,PENILAIAN2!$C$14:$AF$63,17,FALSE)","v":0},{"$f":"VLOOKUP($M$3,PENILAIAN2!$C$14:$AF$63,18,FALSE)","v":0}]
[]
[]
[]
[null,{"$f":"PROYEK2!C37","v":0}]
[null,{"$f":"PROYEK2!K37&\"- \"&PROYEK2!P37","v":{"$error":"#N/A"}},null,null,null,null,{"$f":"VLOOKUP($M$3,PENILAIAN2!$C$14:$AF$63,19,FALSE)","v":0},{"$f":"VLOOKUP($M$3,PENILAIAN2!$C$14:$AF$63,20,FALSE)","v":0},{"$f":"VLOOKUP($M$3,PENILAIAN2!$C$14:$AF$63,21,FALSE)","v":0},{"$f":"VLOOKUP($M$3,PENILAIAN2!$C$14:$AF$63,22,FALSE)","v":0}]
[]
[]
[]
[null,{"$f":"PROYEK2!C43","v":0}]
[null,{"$f":"PROYEK2!K43&\"- \"&PROYEK2!P43","v":{"$error":"#N/A"}},null,null,null,null,{"$f":"VLOOKUP($M$3,PENILAIAN2!$C$14:$AF$63,23,FALSE)","v":0},{"$f":"VLOOKUP($M$3,PENILAIAN2!$C$14:$AF$63,24,FALSE)","v":0},{"$f":"VLOOKUP($M$3,PENILAIAN2!$C$14:$AF$63,25,FALSE)","v":0},{"$f":"VLOOKUP($M$3,PENILAIAN2!$C$14:$AF$63,26,FALSE)","v":0}]
[]
[]
[]
[null,{"$f":"PROYEK2!C49","v":0}]
[null,{"$f":"PROYEK2!K49&\"- \"&PROYEK2!P49","v":{"$error":"#N/A"}},null,null,null,null,{"$f":"VLOOKUP($M$3,PENILAIAN2!$C$14:$AF$63,27,FALSE)","v":0},{"$f":"VLOOKUP($M$3,PENILAIAN2!$C$14:$AF$63,28,FALSE)","v":0},{"$f":"VLOOKUP($M$3,PENILAIAN2!$C$14:$AF$63,29,FALSE)","v":0},{"$f":"VLOOKUP($M$3,PENILAIAN2!$C$14:$AF$63,30,FALSE)","v":0}]
[]
[]
[]
[]
[null,"Catatan Proses"]
[]
[null,{"$f":"VLOOKUP($M$3,'CAT1'!$C$13:$G$62,4,FALSE)","v":0}]
[]
[]
[]
[]
[]
[]
[]
[]
[]
[null,{"$f":"IDENTITAS!H9","v":0},null,null,null,null,"BB","MB","BSH","SB",null,null,{"$f":"M103","v":1}]
[]
[null,{"$f":"PROYEK3!C13","v":0}]
[null,{"$f":"PROYEK3!K13&\"- \"&PROYEK3!P13","v":{"$error":"#N/A"}},null,null,null,null,{"$f":"VLOOKUP($M$3,PENILAIAN3!$C$14:$AF$63,3,FALSE)","v":0},{"$f":"VLOOKUP($M$3,PENILAIAN3!$C$14:$AF$63,4,FALSE)","v":0},{"$f":"VLOOKUP($M$3,PENILAIAN3!$C$14:$AF$63,5,FALSE)","v":0},{"$f":"VLOOKUP($M$3,PENILAIAN3!$C$14:$AF$63,6,FALSE)","v":0}]
[]
[]
[]
[null,{"$f":"PROYEK3!C19","v":0}]
[null,{"$f":"PROYEK3!K19&\"- \"&PROYEK3!P19","v":{"$error":"#N/A"}},null,null,null,null,{"$f":"VLOOKUP($M$3,PENILAIAN3!$C$14:$AF$63,7,FALSE)","v":0},{"$f":"VLOOKUP($M$3,PENILAIAN3!$C$14:$AF$63,8,FALSE)","v":0},{"$f":"VLOOKUP($M$3,PENILAIAN3!$C$14:$AF$63,9,FALSE)","v":0},{"$f":"VLOOKUP($M$3,PENILAIAN3!$C$14:$AF$63,10,FALSE)","v":0}]
[]
[]
[]
[null,{"$f":"PROYEK3!C25","v":0}]
[null,{"$f":"PROYEK3!K25&\"- \"&PROYEK3!P25","v":{"$error":"#N/A"}},null,null,null,null,{"$f":"VLOOKUP($M$3,PENILAIAN3!$C$14:$AF$63,11,FALSE)","v":0},{"$f":"VLOOKUP($M$3,PENILAIAN3!$C$14:$AF$63,12,FALSE)","v":0},{"$f":"VLOOKUP($M$3,PENILAIAN3!$C$14:$AF$63,13,FALSE)","v":0},{"$f":"VLOOKUP($M$3,PENILAIAN3!$C$14:$AF$63,14,FALSE)","v":0}]
[]
[]
[]
[null,{"$f":"PROYEK3!C31","v":0}]
[null,{"$f":"PROYEK3!K31&\"- \"&PROYEK3!P31","v":{"$error":"#N/A"}},null,null,null,null,{"$f":"VLOOKUP($M$3,PENILAIAN3!$C$14:$AF$63,15,FALSE)","v":0},{"$f":"VLOOKUP($M$3,PENILAIAN3!$C$14:$AF$63,16,FALSE)","v":0},{"$f":"VLOOKUP($M$3,PENILAIAN3!$C$14:$AF$63,17,FALSE)","v":0},{"$f":"VLOOKUP($M$3,PENILAIAN3!$C$14:$AF$63,18,FALSE)","v":0}]
[]
[]
[]
[null,{"$f":"PROYEK3!C37","v":0}]
[null,{"$f":"PROYEK3!K37&\"- \"&PROYEK3!P37","v":{"$error":"#N/A"}},null,null,null,null,{"$f":"VLOOKUP($M$3,PENILAIAN3!$C$14:$AF$63,19,FALSE)","v":0},{"$f":"VLOOKUP($M$3,PENILAIAN3!$C$14:$AF$63,20,FALSE)","v":0},{"$f":"VLOOKUP($M$3,PENILAIAN3!$C$14:$AF$63,21,FALSE)","v":0},{"$f":"VLOOKUP($M$3,PENILAIAN3!$C$14:$AF$63,22,FALSE)","v":0}]
[]
[]
[]
[null,{"$f":"PROYEK3!C43","v":0}]
[null,{"$f":"PROYEK3!K43&\"- \"&PROYEK3!P43","v":{"$error":"#N/A"}},null,null,null,null,{"$f":"VLOOKUP($M$3,PENILAIAN3!$C$14:$AF$63,23,FALSE)","v":0},{"$f":"VLOOKUP($M$3,PENILAIAN3!$C$14:$AF$63,24,FALSE)","v":0},{"$f":"VLOOKUP($M$3,PENILAIAN3!$C$14:$AF$63,25,FALSE)","v":0},{"$f":"VLOOKUP($M$3,PENILAIAN3!$C$14:$AF$63,26,FALSE)","v":0}]
[]
[]
[]
[null,{"$f":"PROYEK3!C49","v":0}]
[null,{"$f":"PROYEK3!K49&\"- \"&PROYEK3!P49","v":{"$error":"#N/A"}},null,null,null,null,{"$f":"VLOOKUP($M$3,PENILAIAN3!$C$14:$AF$63,27,FALSE)","v":0},{"$f":"VLOOKUP($M$3,PENILAIAN3!$C$14:$AF$63,28,FALSE)","v":0},{"$f":"VLOOKUP($M$3,PENILAIAN3!$C$14:$AF$63,29,FALSE)","v":0},{"$f":"VLOOKUP($M$3,PENILAIAN3!$C$14:$AF$63,30,FALSE)","v":0}]
[]
[]
[]
[]
[null,"Catatan Proses"]
[]
[null,{"$f":"VLOOKUP($M$3,'CAT1'!$C$13:$G$62,5,FALSE)","v":0}]
[]
[]
[]
[]
[]
[]
[]
[]
[]
[null,"KETERANGAN TINGKAT PENCAPAIAN SISWA"]
[]
[null,null,"BB",null,"MB",null,"BSH",null,"SB"]
[null,null,"Belum Berkembang",null,"Mulai Berkembang",null,"Berkembang sesuai harapan",null,"Sangat Berkembang"]
[null,null,"Siswa masih membutuhkan bimbingan dalam mengembangkan kemampuan",null,"Siswa mulai mengembangkan kemampuan namun masih belum ajek",null,"Siswa telah mengembangkan kemampuan hingga berada dalam tahap ajek",null,"Siswa mengembangkan kemampuannya melampaui harapan"]
[]
[]
[]
[]
[]
[]
[]
[null,null,"Mengetahui,",null,null,null,null,{"$f":"IDENTITAS!D22","v":"00:00:00"}]
[null,null,"Orang Tua",null,null,null,null,{"$f":"\"Wali Kelas \"&IDENTITAS!D19","v":"Wali Kelas "}]
[]
[]
[]
[null,null,null,null,null,null,null,{"$f":"IDENTITAS!D17","v":0}]
[null,null,null,null,null,null,null,{"$f":"\"NIP. \"&IDENTITAS!D18","v":"NIP. "}]
[]
[null,null,null,null,"Mengetahui,"]
[null,null,null,null,"Kepala Sekolah"]
[]
[]
[]
[null,null,null,null,{"$f":"IDENTITAS!D15","v":0}]
[null,null,null,null,{"$f":"\"NIP. \"&IDENTITAS!D16","v":"NIP. "}]

{"sheet":"ISI2","index":10,"n_rows":19,"n_cols":13,"rows_kept":19,"cut":false,"hidden":false,"merged":[[2,1,2,16],[3,1,3,16],[7,12,14,14],[8,2,14,4]]}
[]
[]
[null,"DATA KEGIATAN 2"]
[null,"PROYEK PENGUATAN PROFIL PELAJAR PANCASILA"]
[]
[null,null,null,null,null,null,"Judul Proyek 2",null,{"$f":"\": \"&IDENTITAS!H7","v":": "}]
[]
[null,null,null,null,null,null,null,null,null,null,null,null,"Silahkan input penilaian akhir siswa tiap sub elemen sesuai dengan capaian per fasenya berdasarkan jurnal pendidik, portolio peserta didik, dll."]
[null,null,"Silahkan input data Proyek 1 sesuai dengan yang sudah diidentifikasi pada modul proyek anda"]
[]
[]
[]
[]
[]
[]
[]
[]
[null,null,null,null,null,null,null,"Kembali ke halaman awal"]
[null,null,null,null,null,null,null,"Kembali ke halaman sebelumnya"]

{"sheet":"PROYEK2","index":11,"n_rows":158,"n_cols":16,"rows_kept":158,"cut":false,"hidden":false,"merged":[[2,2,2,19],[5,4,5,8],[10,2,11,4],[10,6,11,8],[10,10,11,13],[10,15,11,19],[12,2,14,4],[12,6,14,8],[12,10,14,13],[12,15,14,19],[16,2,17,4],[16,6,17,8],[16,10,17,13],[16,15,17,19],[18,2,20,4],[18,6,20,8],[18,10,20,13],[18,15,20,19],[22,2,23,4],[22,6,23,8],[22,10,23,13],[22,15,23,19],[24,2,26,4],[24,6,26,8],[24,10,26,13],[24,15,26,19],[28,2,29,4],[28,6,29,8],[28,10,29,13],[28,15,29,19],[30,2,32,4],[30,6,32,8],[30,10,32,13],[30,15,32,19],[34,2,35,4],[34,6,35,8],[34,10,35,13],[34,15,35,19],[36,2,38,4],[36,6,38,8],[36,10,38,13],[36,15,38,19],[40,2,41,4],[40,6,41,8],[40,10,41,13],[40,15,41,19],[48,2,50,4],[48,6,50,8],[48,10,50,13],[48,15,50,19],[42,2,44,4],[42,6,44,8],[42,10,44,13],[42,15,44,19],[46,2,47,4],[46,6,47,8],[46,10,47,13],[46,15,47,19]]}
[]
[]
[null,null,"INPUT DIMENSI, ELEMEN, DAN SUB ELEMEN PROYEK 2"]
[]
[]
[null,null,"Judul Proyek 2",null,{"$f":"IDENTITAS!$H$7","v":0},null,null,null,null,null,null,null,null,"Silahkan pilih dimensi, elemen dan sub elemen yang anda gunakan pada"]
[null,null,"Fase",null,null,null,null,null,null,null,null,null,null,"Proyek 2 Penguatan Profil Pelajar Pancasila secara berurutan dari Dimensi,"]
[null,null,"Kelas",null,null,null,null,null,null,null,null,null,null,"Elemen dan Sub Elemen (dari kiri ke kanan). Jangan lupa pilih Fase."]
[null,null,null,null,null,null,null,null,null,null,null,null,null,"Capaian Tiap Fase akan berubah otomatis, tidak perlu diubah."]
[]
[null,null,"Dimensi 1",null,null,null,"Elemen 1",null,null,null,"Sub Elemen 1",null,null,null,null,{"$f":"\"Capaian Fase \"&$E$7","v":"Capaian Fase "}]
[]
[null,null,null,null,null,null,null,null,null,null,null,null,null,null,null,{"$f":"INDEX(ELSUBFASE!$C$11:$H$52,MATCH(PROYEK2!K13,ELSUBFASE!$B$11:$B$52,0),MATCH(PROYEK2!E7,ELSUBFASE!$C$10:$H$10,0))","v":{"$error":"#N/A"}}]
[]
[]
[]
[null,null,"Dimensi 2",null,null,null,"Elemen 2",null,null,null,"Sub Elemen 2",null,null,null,null,{"$f":"\"Capaian Fase \"&$E$7","v":"Capaian Fase "}]
[]
[null,null,null,null,null,null,null,null,null,null,null,null,null,null,null,{"$f":"INDEX(ELSUBFASE!C11:H52,MATCH(PROYEK2!K19,ELSUBFASE!B11:B52,0),MATCH(PROYEK2!E7,ELSUBFASE!C10:H10,0))","v":{"$error":"#N/A"}}]
[]
[]
[]
[null,null,"Dimensi 3",null,null,null,"Elemen 3",null,null,null,"Sub Elemen 3",null,null,null,null,{"$f":"\"Capaian Fase \"&$E$7","v":"Capaian Fase "}]
[]
[null,null,null,null,null,null,null,null,null,null,null,null,null,null,null,{"$f":"INDEX(ELSUBFASE!C11:H52,MATCH(PROYEK2!K25,ELSUBFASE!B11:B52,0),MATCH(PROYEK2!E7,ELSUBFASE!C10:H10,0))","v":{"$error":"#N/A"}}]
[]
[]
[]
[null,null,"Dimensi 4",null,null,null,"Elemen 4",null,null,null,"Sub Elemen 4",null,null,null,null,{"$f":"\"Capaian Fase \"&$E$7","v":"Capaian Fase "}]
[]
[null,null,null,null,null,null,null,null,null,null,null,null,null,null,null,{"$f":"INDEX(ELSUBFASE!C11:H52,MATCH(PROYEK2!K31,ELSUBFASE!B11:B52,0),MATCH(PROYEK2!E7,ELSUBFASE!C10:H10,0))","v":{"$error":"#N/A"}}]
[]
[]
[]
[null,null,"Dimensi 5",null,null,null,"Elemen 5",null,null,null,"Sub Elemen 5",null,null,null,null,{"$f":"\"Capaian Fase \"&$E$7","v":"Capaian Fase "}]
[]
[null,null,null,null,null,null,null,null,null,null,null,null,null,null,null,{"$f":"INDEX(ELSUBFASE!C11:H52,MATCH(PROYEK2!K37,ELSUBFASE!B11:B52,0),MATCH(PROYEK2!E7,ELSUBFASE!C10:H10,0))","v":{"$error":"#N/A"}}]
[]
[]
[]
[null,null,"Dimensi 6",null,null,null,"Elemen 6",null,null,null,"Sub Elemen 6",null,null,null,null,{"$f":"\"Capaian Fase \"&$E$7","v":"Capaian Fase "}]
[]
[null,null,null,null,null,null,null,null,null,null,null,null,null,null,null,{"$f":"INDEX(ELSUBFASE!C11:H52,MATCH(PROYEK2!K43,ELSUBFASE!B11:B52,0),MATCH(PROYEK2!E7,ELSUBFASE!C10:H10,0))","v":{"$error":"#N/A"}}]
[]
[]
[]
[null,null,"Dimensi 7",null,null,null,"Elemen 7",null,null,null,"Sub Elemen 7",null,null,null,null,{"$f":"\"Capaian Fase \"&$E$7","v":"Capaian Fase "}]
[]
[null,null,null,null,null,null,null,null,null,null,null,null,null,null,null,{"$f":"INDEX(ELSUBFASE!C11:H52,MATCH(PROYEK2!K49,ELSUBFASE!B11:B52,0),MATCH(PROYEK2!E7,ELSUBFASE!C10:H10,0))","v":{"$error":"#N/A"}}]
[]
[]
[]
[]
[]
[]
[]
[]
[]
[]
[]
[]
[]
[]
[]
[]
[]
[]
[]
[]
[]
[]
[]
[]
[]
[]
[]
[]
[]
[]
[]
[]
[]
[]
[]
[]
[]
[]
[]
[]
[]
[]
[]
[]
[]
[]
[]
[]
[]
[]
[]
[]
[]
[]
[]
[]
[]
[]
[]
[]
[]
[]
[]
[]
[]
[]
[]
[]
[]
[]
[]
[]
[]
[]
[]
[]
[]
[]
[]
[]
[]
[]
[]
[]
[]
[]
[]
[]
[]
[]
[]
[]
[]
[]
[]
[]
[]
[]
[]
[]
[]
[]
[]
[]
[]
[]
[]
[]
[{"$f":"PROYEK2!K31&\"- \"","v":"- "}]

{"sheet":"PENILAIAN2","index":12,"n_rows":63,"n_cols":32,"rows_kept":63,"cut":false,"hidden":false,"merged":[[11,8,11,11],[11,12,11,15],[11,16,11,19],[11,20,11,23],[11,24,11,27],[2,2,2,31],[10,2,12,2],[10,3,12,3],[10,4,10,7],[10,8,10,11],[10,12,10,15],[10,16,10,19],[10,20,10,23],[10,24,10,27],[10,28,10,31],[11,28,11,31],[11,4,11,7]]}
[]
[]
[null,null,"PENILAIAN PADA PROYEK 2"]
[]
[null,"Judul Proyek 2",null,{"$f":"IDENTITAS!H7","v":0},null,"Keterangan:",null,null,null,null,null,null,null,null,null,null,null,null,"Petunjuk"]
[null,"Fase",null,{"$f":"PROYEK2!E7","v":0},null,"BB","Belum Berkembang",null,null,null,null,null,null,null,null,null,null,null,"Berikan tanda V pada salah satu kolom yang dicapai peserta didik pada capaian "]
[null,"Kelas",null,{"$f":"PROYEK2!E8","v":0},null,"MB","Mulai Berkembang",null,null,null,null,null,null,null,null,null,null,null,"sub elemen per fase. Sesuaikan dengan rubrik penilaian dengan mempertimbangkan "]
[null,"Tahun Ajaran",null,{"$f":"IDENTITAS!$D$21","v":0},null,"BSH","Berkembang Sesuai Harapan",null,null,null,null,null,null,null,null,null,null,null,"jurnal guru, portofolio siswa, dan lain sebagainya."]
[null,null,null,null,null,"SB","Sangat Berkembang",null,null,null,null,null,null,null,null,null,null,null,"Note : Ketikkan huruf  V (kapital) sehingga terbaca pada bagian rapor"]
[]
[null,null,"NO","NAMA",{"$f":"PROYEK2!C13","v":0},null,null,null,{"$f":"PROYEK2!C19","v":0},null,null,null,{"$f":"PROYEK2!C25","v":0},null,null,null,{"$f":"PROYEK2!C31","v":0},null,null,null,{"$f":"PROYEK2!C37","v":0},null,null,null,{"$f":"PROYEK2!C43","v":0},null,null,null,{"$f":"PROYEK2!C49","v":0}]
[null,null,null,null,{"$f":"PROYEK2!P13","v":{"$error":"#N/A"}},null,null,null,{"$f":"PROYEK2!P19","v":{"$error":"#N/A"}},null,null,null,{"$f":"PROYEK2!P25","v":{"$error":"#N/A"}},null,null,null,{"$f":"PROYEK2!P31","v":{"$error":"#N/A"}},null,null,null,{"$f":"PROYEK2!P37","v":{"$error":"#N/A"}},null,null,null,{"$f":"PROYEK2!P43","v":{"$error":"#N/A"}},null,null,null,{"$f":"PROYEK2!P49","v":{"$error":"#N/A"}}]
[null,null,null,null,"BB","MB","BSH","SB","BB","MB","BSH","SB","BB","MB","BSH","SB","BB","MB","BSH","SB","BB","MB","BSH","SB","BB","MB","BSH","SB","BB","MB","BSH","SB"]
[null,null,1,{"$f":"'Data Siswa'!D6","v":0}]
[null,null,2,{"$f":"'Data Siswa'!D7","v":0}]
[null,null,3,{"$f":"'Data Siswa'!D8","v":0}]
[null,null,4,{"$f":"'Data Siswa'!D9","v":0}]
[null,null,5,{"$f":"'Data Siswa'!D10","v":0}]
[null,null,6,{"$f":"'Data Siswa'!D11","v":0}]
[null,null,7,{"$f":"'Data Siswa'!D12","v":0}]
[null,null,8,{"$f":"'Data Siswa'!D13","v":0}]
[null,null,9,{"$f":"'Data Siswa'!D14","v":0}]
[null,null,10,{"$f":"'Data Siswa'!D15","v":0}]
[null,null,11,{"$f":"'Data Siswa'!D16","v":0}]
[null,null,12,{"$f":"'Data Siswa'!D17","v":0}]
[null,null,13,{"$f":"'Data Siswa'!D18","v":0}]
[null,null,14,{"$f":"'Data Siswa'!D19","v":0}]
[null,null,15,{"$f":"'Data Siswa'!D20","v":0}]
[null,null,16,{"$f":"'Data Siswa'!D21","v":0}]
[null,null,17,{"$f":"'Data Siswa'!D22","v":0}]
[null,null,18,{"$f":"'Data Siswa'!D23","v":0}]
[null,null,19,{"$f":"'Data Siswa'!D24","v":0}]
[null,null,20,{"$f":"'Data Siswa'!D25","v":0}]
[null,null,21,{"$f":"'Data Siswa'!D26","v":0}]
[null,null,22,{"$f":"'Data Siswa'!D27","v":0}]
[null,null,23,{"$f":"'Data Siswa'!D28","v":0}]
[null,null,24,{"$f":"'Data Siswa'!D29","v":0}]
[null,null,25,{"$f":"'Data Siswa'!D30","v":0}]
[null,null,26,{"$f":"'Data Siswa'!D31","v":0}]
[null,null,27,{"$f":"'Data Siswa'!D32","v":0}]
[null,null,28,{"$f":"'Data Siswa'!D33","v":0}]
[null,null,29,{"$f":"'Data Siswa'!D34","v":0}]
[null,null,30,{"$f":"'Data Siswa'!D35","v":0}]
[null,null,31,{"$f":"'Data Siswa'!D36","v":0}]
[null,null,32,{"$f":"'Data Siswa'!D37","v":0}]
[null,null,33,{"$f":"'Data Siswa'!D38","v":0}]
[null,null,34,{"$f":"'Data Siswa'!D39","v":0}]
[null,null,35,{"$f":"'Data Siswa'!D40","v":0}]
[null,null,36,{"$f":"'Data Siswa'!D41","v":0}]
[null,null,37,{"$f":"'Data Siswa'!D42","v":0}]
[null,null,38,{"$f":"'Data Siswa'!D43","v":0}]
[null,null,39,{"$f":"'Data Siswa'!D44","v":0}]
[null,null,40,{"$f":"'Data Siswa'!D45","v":0}]
[null,null,41,{"$f":"'Data Siswa'!D46","v":0}]
[null,null,42,{"$f":"'Data Siswa'!D47","v":0}]
[null,null,43,{"$f":"'Data Siswa'!D48","v":0}]
[null,null,44,{"$f":"'Data Siswa'!D49","v":0}]
[null,null,45,{"$f":"'Data Siswa'!D50","v":0}]
[null,null,46,{"$f":"'Data Siswa'!D51","v":0}]
[null,null,47,{"$f":"'Data Siswa'!D52","v":0}]
[null,null,48,{"$f":"'Data Siswa'!D53","v":0}]
[null,null,49,{"$f":"'Data Siswa'!D54","v":0}]
[null,null,50,{"$f":"'Data Siswa'!D55","v":0}]

{"sheet":"ISI3","index":13,"n_rows":19,"n_cols":13,"rows_kept":19,"cut":false,"hidden":false,"merged":[[2,1,2,16],[3,1,3,16],[7,12,14,14],[8,2,14,4]]}
[]
[]
[null,"DATA KEGIATAN 3"]
[null,"PROYEK PENGUATAN PROFIL PELAJAR PANCASILA"]
[]
[null,null,null,null,null,null,"Judul Proyek 3",null,{"$f":"\": \"&IDENTITAS!H9","v":": "}]
[]
[null,null,null,null,null,null,null,null,null,null,null,null,"Silahkan input penilaian akhir siswa tiap sub elemen sesuai dengan capaian per fasenya berdasarkan jurnal pendidik, portolio peserta didik, dll."]
[null,null,"Silahkan input data Proyek 1 sesuai dengan yang sudah diidentifikasi pada modul proyek anda"]
[]
[]
[]
[]
[]
[]
[]
[]
[null,null,null,null,null,null,null,"Kembali ke halaman awal"]
[null,null,null,null,null,null,null,"Kembali ke halaman sebelumnya"]

{"sheet":"PROYEK3","index":14,"n_rows":49,"n_cols":16,"rows_kept":49,"cut":false,"hidden":false,"merged":[[2,2,2,19],[5,4,5,8],[10,2,11,4],[10,6,11,8],[10,10,11,13],[10,15,11,19],[12,2,14,4],[12,6,14,8],[12,10,14,13],[12,15,14,19],[16,2,17,4],[16,6,17,8],[16,10,17,13],[16,15,17,19],[18,2,20,4],[18,6,20,8],[18,10,20,13],[18,15,20,19],[22,2,23,4],[22,6,23,8],[22,10,23,13],[22,15,23,19],[24,2,26,4],[24,6,26,8],[24,10,26,13],[24,15,26,19],[28,2,29,4],[28,6,29,8],[28,10,29,13],[28,15,29,19],[30,2,32,4],[30,6,32,8],[30,10,32,13],[30,15,32,19],[34,2,35,4],[34,6,35,8],[34,10,35,13],[34,15,35,19],[36,2,38,4],[36,6,38,8],[36,10,38,13],[36,15,38,19],[40,2,41,4],[40,6,41,8],[40,10,41,13],[40,15,41,19],[48,2,50,4],[48,6,50,8],[48,10,50,13],[48,15,50,19],[42,2,44,4],[42,6,44,8],[42,10,44,13],[42,15,44,19],[46,2,47,4],[46,6,47,8],[46,10,47,13],[46,15,47,19]]}
[]
[]
[null,null,"INPUT DIMENSI, ELEMEN, DAN SUB ELEMEN PROYEK 3"]
[]
[]
[null,null,"Judul Proyek 3",null,{"$f":"IDENTITAS!$H$9","v":0},null,null,null,null,null,null,null,null,"Silahkan pilih dimensi, elemen dan sub elemen yang anda gunakan pada"]
[null,null,"Fase",null,null,null,null,null,null,null,null,null,null,"Proyek 3 Penguatan Profil Pelajar Pancasila secara berurutan dari Dimensi,"]
[null,null,"Kelas",null,null,null,null,null,null,null,null,null,null,"Elemen dan Sub Elemen (dari kiri ke kanan). Jangan lupa memilih Fase."]
[null,null,null,null,null,null,null,null,null,null,null,null,null,"Capaian Tiap Fase akan berubah otomatis, tidak perlu diubah."]
[]
[null,null,"Dimensi 1",null,null,null,"Elemen 1",null,null,null,"Sub Elemen 1",null,null,null,null,{"$f":"\"Capaian Fase \"&$E$7","v":"Capaian Fase "}]
[]
[null,null,null,null,null,null,null,null,null,null,null,null,null,null,null,{"$f":"INDEX(ELSUBFASE!$C$11:$H$52,MATCH(PROYEK3!K13,ELSUBFASE!$B$11:$B$52,0),MATCH(PROYEK3!E7,ELSUBFASE!$C$10:$H$10,0))","v":{"$error":"#N/A"}}]
[]
[]
[]
[null,null,"Dimensi 2",null,null,null,"Elemen 2",null,null,null,"Sub Elemen 2",null,null,null,null,{"$f":"\"Capaian Fase \"&$E$7","v":"Capaian Fase "}]
[]
[null,null,null,null,null,null,null,null,null,null,null,null,null,null,null,{"$f":"INDEX(ELSUBFASE!C11:H52,MATCH(PROYEK3!K19,ELSUBFASE!B11:B52,0),MATCH(PROYEK3!E7,ELSUBFASE!C10:H10,0))","v":{"$error":"#N/A"}}]
[]
[]
[]
[null,null,"Dimensi 3",null,null,null,"Elemen 3",null,null,null,"Sub Elemen 3",null,null,null,null,{"$f":"\"Capaian Fase \"&$E$7","v":"Capaian Fase "}]
[]
[null,null,null,null,null,null,null,null,null,null,null,null,null,null,null,{"$f":"INDEX(ELSUBFASE!C11:H52,MATCH(PROYEK3!K25,ELSUBFASE!B11:B52,0),MATCH(PROYEK3!E7,ELSUBFASE!C10:H10,0))","v":{"$error":"#N/A"}}]
[]
[]
[]
[null,null,"Dimensi 4",null,null,null,"Elemen 4",null,null,null,"Sub Elemen 4",null,null,null,null,{"$f":"\"Capaian Fase \"&$E$7","v":"Capaian Fase "}]
[]
[null,null,null,null,null,null,null,null,null,null,null,null,null,null,null,{"$f":"INDEX(ELSUBFASE!C11:H52,MATCH(PROYEK3!K31,ELSUBFASE!B11:B52,0),MATCH(PROYEK3!E7,ELSUBFASE!C10:H10,0))","v":{"$error":"#N/A"}}]
[]
[]
[]
[null,null,"Dimensi 5",null,null,null,"Elemen 5",null,null,null,"Sub Elemen 5",null,null,null,null,{"$f":"\"Capaian Fase \"&$E$7","v":"Capaian Fase "}]
[]
[null,null,null,null,null,null,null,null,null,null,null,null,null,null,null,{"$f":"INDEX(ELSUBFASE!C11:H52,MATCH(PROYEK3!K37,ELSUBFASE!B11:B52,0),MATCH(PROYEK3!E7,ELSUBFASE!C10:H10,0))","v":{"$error":"#N/A"}}]
[]
[]
[]
[null,null,"Dimensi 6",null,null,null,"Elemen 6",null,null,null,"Sub Elemen 6",null,null,null,null,{"$f":"\"Capaian Fase \"&$E$7","v":"Capaian Fase "}]
[]
[null,null,null,null,null,null,null,null,null,null,null,null,null,null,null,{"$f":"INDEX(ELSUBFASE!C11:H52,MATCH(PROYEK3!K43,ELSUBFASE!B11:B52,0),MATCH(PROYEK3!E7,ELSUBFASE!C10:H10,0))","v":{"$error":"#N/A"}}]
[]
[]
[]
[null,null,"Dimensi 7",null,null,null,"Elemen 7",null,null,null,"Sub Elemen 7",null,null,null,null,{"$f":"\"Capaian Fase \"&$E$7","v":"Capaian Fase "}]
[]
[null,null,null,null,null,null,null,null,null,null,null,null,null,null,null,{"$f":"INDEX(ELSUBFASE!C11:H52,MATCH(PROYEK3!K49,ELSUBFASE!B11:B52,0),MATCH(PROYEK3!E7,ELSUBFASE!C10:H10,0))","v":{"$error":"#N/A"}}]

{"sheet":"PENILAIAN3","index":15,"n_rows":63,"n_cols":32,"rows_kept":63,"cut":false,"hidden":false,"merged":[[11,8,11,11],[11,12,11,15],[11,16,11,19],[11,20,11,23],[11,24,11,27],[2,2,2,31],[10,2,12,2],[10,3,12,3],[10,4,10,7],[10,8,10,11],[10,12,10,15],[10,16,10,19],[10,20,10,23],[10,24,10,27],[10,28,10,31],[11,28,11,31],[11,4,11,7]]}
[]
[]
[null,null,"PENILAIAN PADA PROYEK 3"]
[]
[null,"Judul Proyek 3",null,{"$f":"IDENTITAS!H9","v":0},null,"Keterangan:",null,null,null,null,null,null,null,null,null,null,null,null,"Petunjuk"]
[null,"Fase",null,{"$f":"PROYEK3!E7","v":0},null,"BB","Belum Berkembang",null,null,null,null,null,null,null,null,null,null,null,"Berikan tanda V pada salah satu kolom yang dicapai peserta didik pada capaian "]
[null,"Kelas",null,{"$f":"PROYEK3!E8","v":0},null,"MB","Mulai Berkembang",null,null,null,null,null,null,null,null,null,null,null,"sub elemen per fase. Sesuaikan dengan rubrik penilaian dengan mempertimbangkan "]
[null,"Tahun Ajaran",null,{"$f":"IDENTITAS!$D$21","v":0},null,"BSH","Berkembang Sesuai Harapan",null,null,null,null,null,null,null,null,null,null,null,"jurnal guru, portofolio siswa, dan lain sebagainya."]
[null,null,null,null,null,"SB","Sangat Berkembang",null,null,null,null,null,null,null,null,null,null,null,"Note : Ketikkan huruf  V (kapital) sehingga terbaca pada bagian rapor"]
[]
[null,null,"NO","NAMA",{"$f":"PROYEK3!C13","v":0},null,null,null,{"$f":"PROYEK3!C19","v":0},null,null,null,{"$f":"PROYEK3!C25","v":0},null,null,null,{"$f":"PROYEK3!C31","v":0},null,null,null,{"$f":"PROYEK3!C37","v":0},null,null,null,{"$f":"PROYEK3!C43","v":0},null,null,null,{"$f":"PROYEK3!C49","v":0}]
[null,null,null,null,{"$f":"PROYEK3!P13","v":{"$error":"#N/A"}},null,null,null,{"$f":"PROYEK3!P19","v":{"$error":"#N/A"}},null,null,null,{"$f":"PROYEK3!P25","v":{"$error":"#N/A"}},null,null,null,{"$f":"PROYEK3!P31","v":{"$error":"#N/A"}},null,null,null,{"$f":"PROYEK3!P37","v":{"$error":"#N/A"}},null,null,null,{"$f":"PROYEK3!P43","v":{"$error":"#N/A"}},null,null,null,{"$f":"PROYEK3!P49","v":{"$error":"#N/A"}}]
[null,null,null,null,"BB","MB","BSH","SB","BB","MB","BSH","SB","BB","MB","BSH","SB","BB","MB","BSH","SB","BB","MB","BSH","SB","BB","MB","BSH","SB","BB","MB","BSH","SB"]
[null,null,1,{"$f":"'Data Siswa'!D6","v":0}]
[null,null,2,{"$f":"'Data Siswa'!D7","v":0}]
[null,null,3,{"$f":"'Data Siswa'!D8","v":0}]
[null,null,4,{"$f":"'Data Siswa'!D9","v":0}]
[null,null,5,{"$f":"'Data Siswa'!D10","v":0}]
[null,null,6,{"$f":"'Data Siswa'!D11","v":0}]
[null,null,7,{"$f":"'Data Siswa'!D12","v":0}]
[null,null,8,{"$f":"'Data Siswa'!D13","v":0}]
[null,null,9,{"$f":"'Data Siswa'!D14","v":0}]
[null,null,10,{"$f":"'Data Siswa'!D15","v":0}]
[null,null,11,{"$f":"'Data Siswa'!D16","v":0}]
[null,null,12,{"$f":"'Data Siswa'!D17","v":0}]
[null,null,13,{"$f":"'Data Siswa'!D18","v":0}]
[null,null,14,{"$f":"'Data Siswa'!D19","v":0}]
[null,null,15,{"$f":"'Data Siswa'!D20","v":0}]
[null,null,16,{"$f":"'Data Siswa'!D21","v":0}]
[null,null,17,{"$f":"'Data Siswa'!D22","v":0}]
[null,null,18,{"$f":"'Data Siswa'!D23","v":0}]
[null,null,19,{"$f":"'Data Siswa'!D24","v":0}]
[null,null,20,{"$f":"'Data Siswa'!D25","v":0}]
[null,null,21,{"$f":"'Data Siswa'!D26","v":0}]
[null,null,22,{"$f":"'Data Siswa'!D27","v":0}]
[null,null,23,{"$f":"'Data Siswa'!D28","v":0}]
[null,null,24,{"$f":"'Data Siswa'!D29","v":0}]
[null,null,25,{"$f":"'Data Siswa'!D30","v":0}]
[null,null,26,{"$f":"'Data Siswa'!D31","v":0}]
[null,null,27,{"$f":"'Data Siswa'!D32","v":0}]
[null,null,28,{"$f":"'Data Siswa'!D33","v":0}]
[null,null,29,{"$f":"'Data Siswa'!D34","v":0}]
[null,null,30,{"$f":"'Data Siswa'!D35","v":0}]
[null,null,31,{"$f":"'Data Siswa'!D36","v":0}]
[null,null,32,{"$f":"'Data Siswa'!D37","v":0}]
[null,null,33,{"$f":"'Data Siswa'!D38","v":0}]
[null,null,34,{"$f":"'Data Siswa'!D39","v":0}]
[null,null,35,{"$f":"'Data Siswa'!D40","v":0}]
[null,null,36,{"$f":"'Data Siswa'!D41","v":0}]
[null,null,37,{"$f":"'Data Siswa'!D42","v":0}]
[null,null,38,{"$f":"'Data Siswa'!D43","v":0}]
[null,null,39,{"$f":"'Data Siswa'!D44","v":0}]
[null,null,40,{"$f":"'Data Siswa'!D45","v":0}]
[null,null,41,{"$f":"'Data Siswa'!D46","v":0}]
[null,null,42,{"$f":"'Data Siswa'!D47","v":0}]
[null,null,43,{"$f":"'Data Siswa'!D48","v":0}]
[null,null,44,{"$f":"'Data Siswa'!D49","v":0}]
[null,null,45,{"$f":"'Data Siswa'!D50","v":0}]
[null,null,46,{"$f":"'Data Siswa'!D51","v":0}]
[null,null,47,{"$f":"'Data Siswa'!D52","v":0}]
[null,null,48,{"$f":"'Data Siswa'!D53","v":0}]
[null,null,49,{"$f":"'Data Siswa'!D54","v":0}]
[null,null,50,{"$f":"'Data Siswa'!D55","v":0}]

{"sheet":"ISI4","index":16,"n_rows":19,"n_cols":13,"rows_kept":19,"cut":false,"hidden":false,"merged":[[2,1,2,16],[3,1,3,16],[7,12,14,14],[8,2,14,4]]}
[]
[]
[null,"DATA KEGIATAN 4"]
[null,"PROYEK PENGUATAN PROFIL PELAJAR PANCASILA"]
[]
[null,null,null,null,null,null,"Judul Proyek 4",null,{"$f":"\": \"&IDENTITAS!H11","v":": "}]
[]
[null,null,null,null,null,null,null,null,null,null,null,null,"Silahkan input penilaian akhir siswa tiap sub elemen sesuai dengan capaian per fasenya berdasarkan jurnal pendidik, portolio peserta didik, dll."]
[null,null,"Silahkan input data Proyek 1 sesuai dengan yang sudah diidentifikasi pada modul proyek anda"]
[]
[]
[]
[]
[]
[]
[]
[]
[null,null,null,null,null,null,null,"Kembali ke halaman awal"]
[null,null,null,null,null,null,null,"Kembali ke halaman sebelumnya"]

{"sheet":"PROYEK4","index":17,"n_rows":49,"n_cols":16,"rows_kept":49,"cut":false,"hidden":false,"merged":[[2,2,2,19],[5,4,5,8],[10,2,11,4],[10,6,11,8],[10,10,11,13],[10,15,11,19],[12,2,14,4],[12,6,14,8],[12,10,14,13],[12,15,14,19],[16,2,17,4],[16,6,17,8],[16,10,17,13],[16,15,17,19],[18,2,20,4],[18,6,20,8],[18,10,20,13],[18,15,20,19],[22,2,23,4],[22,6,23,8],[22,10,23,13],[22,15,23,19],[24,2,26,4],[24,6,26,8],[24,10,26,13],[24,15,26,19],[28,2,29,4],[28,6,29,8],[28,10,29,13],[28,15,29,19],[30,2,32,4],[30,6,32,8],[30,10,32,13],[30,15,32,19],[34,2,35,4],[34,6,35,8],[34,10,35,13],[34,15,35,19],[36,2,38,4],[36,6,38,8],[36,10,38,13],[36,15,38,19],[40,2,41,4],[40,6,41,8],[40,10,41,13],[40,15,41,19],[48,2,50,4],[48,6,50,8],[48,10,50,13],[48,15,50,19],[42,2,44,4],[42,6,44,8],[42,10,44,13],[42,15,44,19],[46,2,47,4],[46,6,47,8],[46,10,47,13],[46,15,47,19]]}
[]
[]
[null,null,"INPUT DIMENSI, ELEMEN, DAN SUB ELEMEN PROYEK 4"]
[]
[]
[null,null,"Judul Proyek 4",null,{"$f":"IDENTITAS!$H$11","v":0},null,null,null,null,null,null,null,null,"Silahkan pilih dimensi, elemen dan sub elemen yang anda gunakan pada"]
[null,null,"Fase",null,"D",null,null,null,null,null,null,null,null,"Proyek 4 Penguatan Profil Pelajar Pancasila secara berurutan dari Dimensi,"]
[null,null,"Kelas",null,"II",null,null,null,null,null,null,null,null,"Elemen dan Sub Elemen (dari kiri ke kanan)"]
[null,null,null,null,null,null,null,null,null,null,null,null,null,"Capaian Tiap Fase akan berubah otomatis, tidak perlu diubah."]
[]
[null,null,"Dimensi 1",null,null,null,"Elemen 1",null,null,null,"Sub Elemen 1",null,null,null,null,{"$f":"\"Capaian Fase \"&$E$7","v":"Capaian Fase D"}]
[]
[null,null,"Berkebhinekaan Global",null,null,null,"Refleksi dan bertanggung jawab terhadap pengalaman kebinekaan",null,null,null,"Refleksi terhadap pengalaman kebinekaan",null,null,null,null,{"$f":"INDEX(ELSUBFASE!$C$11:$H$52,MATCH(PROYEK4!K13,ELSUBFASE!$B$11:$B$52,0),MATCH(PROYEK4!E7,ELSUBFASE!$C$10:$H$10,0))","v":"Merefleksikan secara kritis gambaran berbagai kelompok budaya yang ditemui dan cara meresponnya."}]
[]
[]
[]
[null,null,"Dimensi 2",null,null,null,"Elemen 2",null,null,null,"Sub Elemen 2",null,null,null,null,{"$f":"\"Capaian Fase \"&$E$7","v":"Capaian Fase D"}]
[]
[null,null,"Bernalar Kritis",null,null,null,"Refleksi pemikiran dan proses berpikir",null,null,null,"Merefleksi dan mengevaluasi pemikirannya sendiri",null,null,null,null,{"$f":"INDEX(ELSUBFASE!C11:H52,MATCH(PROYEK4!K19,ELSUBFASE!B11:B52,0),MATCH(PROYEK4!E7,ELSUBFASE!C10:H10,0))","v":"Menjelaskan asumsi yang digunakan, menyadari kecenderungan dan konsekuensi bias pada pemikirannya, serta berusaha mempertimbangkan perspektif yang berbeda."}]
[]
[]
[]
[null,null,"Dimensi 3",null,null,null,"Elemen 3",null,null,null,"Sub Elemen 3",null,null,null,null,{"$f":"\"Capaian Fase \"&$E$7","v":"Capaian Fase D"}]
[]
[null,null,"Bergotong-Royong",null,null,null,"Kepedulian",null,null,null,"Persepsi sosial",null,null,null,null,{"$f":"INDEX(ELSUBFASE!C11:H52,MATCH(PROYEK4!K25,ELSUBFASE!B11:B52,0),MATCH(PROYEK4!E7,ELSUBFASE!C10:H10,0))","v":"Menggunakan pengetahuan tentang sebab dan alasan orang lain menampilkan reaksi tertentu untuk menentukan tindakan yang tepat agar orang lain menampilkan respon yang diharapkan."}]
[]
[]
[]
[null,null,"Dimensi 4",null,null,null,"Elemen 4",null,null,null,"Sub Elemen 4",null,null,null,null,{"$f":"\"Capaian Fase \"&$E$7","v":"Capaian Fase D"}]
[]
[null,null,"Mandiri",null,null,null,"Regulasi Diri",null,null,null,"Penetapan tujuan belajar, prestasi, dan pengembangan diri serta rencana strategis untuk mencapainya",null,null,null,null,{"$f":"INDEX(ELSUBFASE!C11:H52,MATCH(PROYEK4!K31,ELSUBFASE!B11:B52,0),MATCH(PROYEK4!E7,ELSUBFASE!C10:H10,0))","v":"Merancang strategi yang sesuai untuk menunjang pencapaian tujuan belajar, prestasi, dan pengembangan diri dengan mempertimbangkan kekuatan dan kelemahan dirinya, serta situasi yang dihadapi."}]
[]
[]
[]
[null,null,"Dimensi 5",null,null,null,"Elemen 5",null,null,null,"Sub Elemen 5",null,null,null,null,{"$f":"\"Capaian Fase \"&$E$7","v":"Capaian Fase D"}]
[]
[null,null,"Bernalar Kritis",null,null,null,"Refleksi pemikiran dan proses berpikir",null,null,null,"Merefleksi dan mengevaluasi pemikirannya sendiri",null,null,null,null,{"$f":"INDEX(ELSUBFASE!C11:H52,MATCH(PROYEK4!K37,ELSUBFASE!B11:B52,0),MATCH(PROYEK4!E7,ELSUBFASE!C10:H10,0))","v":"Menjelaskan asumsi yang digunakan, menyadari kecenderungan dan konsekuensi bias pada pemikirannya, serta berusaha mempertimbangkan perspektif yang berbeda."}]
[]
[]
[]
[null,null,"Dimensi 6",null,null,null,"Elemen 6",null,null,null,"Sub Elemen 6",null,null,null,null,{"$f":"\"Capaian Fase \"&$E$7","v":"Capaian Fase D"}]
[]
[null,null,"Kreatif",null,null,null,"Menganalisis dan mengevaluasi penalaran dan prosedurnya",null,null,null,"Menganalisis dan mengevaluasi penalaran dan prosedurnya",null,null,null,null,{"$f":"INDEX(ELSUBFASE!C11:H52,MATCH(PROYEK4!K43,ELSUBFASE!B11:B52,0),MATCH(PROYEK4!E7,ELSUBFASE!C10:H10,0))","v":"Membuktikan penalaran dengan berbagai argumen dalam mengambil suatu simpulan atau keputusan."}]
[]
[]
[]
[null,null,"Dimensi 7",null,null,null,"Elemen 7",null,null,null,"Sub Elemen 7",null,null,null,null,{"$f":"\"Capaian Fase \"&$E$7","v":"Capaian Fase D"}]
[]
[null,null,"Berkebhinekaan Global",null,null,null,"Komunikasi dan interaksi antar budaya",null,null,null,"Berkomunikasi antar budaya",null,null,null,null,{"$f":"INDEX(ELSUBFASE!C11:H52,MATCH(PROYEK4!K49,ELSUBFASE!B11:B52,0),MATCH(PROYEK4!E7,ELSUBFASE!C10:H10,0))","v":"Mengeksplorasi pengaruh budaya terhadap penggunaan bahasa serta dapat mengenali risiko dalam berkomunikasi antar budaya."}]

{"sheet":"PENILAIAN4","index":18,"n_rows":63,"n_cols":32,"rows_kept":63,"cut":false,"hidden":false,"merged":[[2,2,2,31],[11,2,12,2],[11,3,12,3],[11,4,11,7],[11,8,11,11],[11,12,11,15],[11,16,11,19],[11,20,11,23],[11,24,11,27],[11,28,11,31]]}
[]
[]
[null,null,"PENILAIAN PADA PROYEK 4"]
[]
[null,"Judul Proyek 4",null,{"$f":"IDENTITAS!H11","v":0},null,"Keterangan:",null,null,null,null,null,null,null,null,null,null,null,null,"Petunjuk"]
[null,"Fase",null,{"$f":"PROYEK1!E7","v":0},null,"BB","Belum Berkembang",null,null,null,null,null,null,null,null,null,null,null,"Berikan tanda ceklist pada salah satu kolom yang dicapai peserta didik pada capaian "]
[null,"Kelas",null,{"$f":"PROYEK1!E8","v":0},null,"MB","Mulai Berkembang",null,null,null,null,null,null,null,null,null,null,null,"subelemen per fase. Sesuaikan dengan rubrik penilaian dengan mempertimbangkan "]
[null,"Tahun Ajaran",null,{"$f":"IDENTITAS!$D$21","v":0},null,"BSH","Berkembang Sesuai Harapan",null,null,null,null,null,null,null,null,null,null,null,"jurnal guru, portofolio siswa, dan lain sebagainya."]
[null,null,null,null,null,"SB","Sangat Berkembang",null,null,null,null,null,null,null,null,null,null,null,null,null,"Simbol untuk di copy.",null,null,null,null,"P"]
[]
[]
[null,null,"NO","NAMA",{"$f":"PROYEK4!P13","v":"Merefleksikan secara kritis gambaran berbagai kelompok budaya yang ditemui dan cara meresponnya."},null,null,null,{"$f":"PROYEK4!P19","v":"Menjelaskan asumsi yang digunakan, menyadari kecenderungan dan konsekuensi bias pada pemikirannya, serta berusaha mempertimbangkan perspektif yang berbeda."},null,null,null,{"$f":"PROYEK4!P25","v":"Menggunakan pengetahuan tentang sebab dan alasan orang lain menampilkan reaksi tertentu untuk menentukan tindakan yang tepat agar orang lain menampilkan respon yang diharapkan."},null,null,null,{"$f":"PROYEK4!P31","v":"Merancang strategi yang sesuai untuk menunjang pencapaian tujuan belajar, prestasi, dan pengembangan diri dengan mempertimbangkan kekuatan dan kelemahan dirinya, serta situasi yang dihadapi."},null,null,null,{"$f":"PROYEK4!P37","v":"Menjelaskan asumsi yang digunakan, menyadari kecenderungan dan konsekuensi bias pada pemikirannya, serta berusaha mempertimbangkan perspektif yang berbeda."},null,null,null,{"$f":"PROYEK4!P43","v":"Membuktikan penalaran dengan berbagai argumen dalam mengambil suatu simpulan atau keputusan."},null,null,null,{"$f":"PROYEK4!P49","v":"Mengeksplorasi pengaruh budaya terhadap penggunaan bahasa serta dapat mengenali risiko dalam berkomunikasi antar budaya."}]
[null,null,null,null,"BB","MB","BSH","SB","BB","MB","BSH","SB","BB","MB","BSH","SB","BB","MB","BSH","SB","BB","MB","BSH","SB","BB","MB","BSH","SB","BB","MB","BSH","SB"]
[null,null,1,{"$f":"'Data Siswa'!D6","v":0}]
[null,null,2,{"$f":"'Data Siswa'!D7","v":0}]
[null,null,3,{"$f":"'Data Siswa'!D8","v":0}]
[null,null,4,{"$f":"'Data Siswa'!D9","v":0}]
[null,null,5,{"$f":"'Data Siswa'!D10","v":0}]
[null,null,6,{"$f":"'Data Siswa'!D11","v":0}]
[null,null,7,{"$f":"'Data Siswa'!D12","v":0}]
[null,null,8,{"$f":"'Data Siswa'!D13","v":0}]
[null,null,9,{"$f":"'Data Siswa'!D14","v":0}]
[null,null,10,{"$f":"'Data Siswa'!D15","v":0}]
[null,null,11,{"$f":"'Data Siswa'!D16","v":0}]
[null,null,12,{"$f":"'Data Siswa'!D17","v":0}]
[null,null,13,{"$f":"'Data Siswa'!D18","v":0}]
[null,null,14,{"$f":"'Data Siswa'!D19","v":0}]
[null,null,15,{"$f":"'Data Siswa'!D20","v":0}]
[null,null,16,{"$f":"'Data Siswa'!D21","v":0}]
[null,null,17,{"$f":"'Data Siswa'!D22","v":0}]
[null,null,18,{"$f":"'Data Siswa'!D23","v":0}]
[null,null,19,{"$f":"'Data Siswa'!D24","v":0}]
[null,null,20,{"$f":"'Data Siswa'!D25","v":0}]
[null,null,21,{"$f":"'Data Siswa'!D26","v":0}]
[null,null,22,{"$f":"'Data Siswa'!D27","v":0}]
[null,null,23,{"$f":"'Data Siswa'!D28","v":0}]
[null,null,24,{"$f":"'Data Siswa'!D29","v":0}]
[null,null,25,{"$f":"'Data Siswa'!D30","v":0}]
[null,null,26,{"$f":"'Data Siswa'!D31","v":0}]
[null,null,27,{"$f":"'Data Siswa'!D32","v":0}]
[null,null,28,{"$f":"'Data Siswa'!D33","v":0}]
[null,null,29,{"$f":"'Data Siswa'!D34","v":0}]
[null,null,30,{"$f":"'Data Siswa'!D35","v":0}]
[null,null,31,{"$f":"'Data Siswa'!D36","v":0}]
[null,null,32,{"$f":"'Data Siswa'!D37","v":0}]
[null,null,33,{"$f":"'Data Siswa'!D38","v":0}]
[null,null,34,{"$f":"'Data Siswa'!D39","v":0}]
[null,null,35,{"$f":"'Data Siswa'!D40","v":0}]
[null,null,36,{"$f":"'Data Siswa'!D41","v":0}]
[null,null,37,{"$f":"'Data Siswa'!D42","v":0}]
[null,null,38,{"$f":"'Data Siswa'!D43","v":0}]
[null,null,39,{"$f":"'Data Siswa'!D44","v":0}]
[null,null,40,{"$f":"'Data Siswa'!D45","v":0}]
[null,null,41,{"$f":"'Data Siswa'!D46","v":0}]
[null,null,42,{"$f":"'Data Siswa'!D47","v":0}]
[null,null,43,{"$f":"'Data Siswa'!D48","v":0}]
[null,null,44,{"$f":"'Data Siswa'!D49","v":0}]
[null,null,45,{"$f":"'Data Siswa'!D50","v":0}]
[null,null,46,{"$f":"'Data Siswa'!D51","v":0}]
[null,null,47,{"$f":"'Data Siswa'!D52","v":0}]
[null,null,48,{"$f":"'Data Siswa'!D53","v":0}]
[null,null,49,{"$f":"'Data Siswa'!D54","v":0}]
[null,null,50,{"$f":"'Data Siswa'!D55","v":0}]

{"sheet":"ISI5","index":19,"n_rows":19,"n_cols":13,"rows_kept":19,"cut":false,"hidden":false,"merged":[[2,1,2,16],[3,1,3,16],[7,12,14,14],[8,2,14,4]]}
[]
[]
[null,"DATA KEGIATAN 5"]
[null,"PROYEK PENGUATAN PROFIL PELAJAR PANCASILA"]
[]
[null,null,null,null,null,null,"Judul Proyek 5",null,{"$f":"\": \"&IDENTITAS!H13","v":": Tuliskan Judul Proyek yang anda lakukan di sekolah anda"}]
[]
[null,null,null,null,null,null,null,null,null,null,null,null,"Silahkan input penilaian akhir siswa tiap sub elemen sesuai dengan capaian per fasenya berdasarkan jurnal pendidik, portolio peserta didik, dll."]
[null,null,"Silahkan input data Proyek 1 sesuai dengan yang sudah diidentifikasi pada modul proyek anda"]
[]
[]
[]
[]
[]
[]
[]
[]
[null,null,null,null,null,null,null,"Kembali ke halaman awal"]
[null,null,null,null,null,null,null,"Kembali ke halaman sebelumnya"]

{"sheet":"PROYEK5","index":20,"n_rows":49,"n_cols":16,"rows_kept":49,"cut":false,"hidden":false,"merged":[[2,2,2,19],[5,4,5,8],[10,2,11,4],[10,6,11,8],[10,10,11,13],[10,15,11,19],[12,2,14,4],[12,6,14,8],[12,10,14,13],[12,15,14,19],[16,2,17,4],[16,6,17,8],[16,10,17,13],[16,15,17,19],[18,2,20,4],[18,6,20,8],[18,10,20,13],[18,15,20,19],[22,2,23,4],[22,6,23,8],[22,10,23,13],[22,15,23,19],[24,2,26,4],[24,6,26,8],[24,10,26,13],[24,15,26,19],[28,2,29,4],[28,6,29,8],[28,10,29,13],[28,15,29,19],[30,2,32,4],[30,6,32,8],[30,10,32,13],[30,15,32,19],[34,2,35,4],[34,6,35,8],[34,10,35,13],[34,15,35,19],[36,2,38,4],[36,6,38,8],[36,10,38,13],[36,15,38,19],[40,2,41,4],[40,6,41,8],[40,10,41,13],[40,15,41,19],[48,2,50,4],[48,6,50,8],[48,10,50,13],[48,15,50,19],[42,2,44,4],[42,6,44,8],[42,10,44,13],[42,15,44,19],[46,2,47,4],[46,6,47,8],[46,10,47,13],[46,15,47,19]]}
[]
[]
[null,null,"INPUT DIMENSI, ELEMEN, DAN SUB ELEMEN PROYEK 5"]
[]
[]
[null,null,"Judul Proyek 5",null,{"$f":"IDENTITAS!$H$13","v":"Tuliskan Judul Proyek yang anda lakukan di sekolah anda"},null,null,null,null,null,null,null,null,"Silahkan pilih dimensi, elemen dan sub elemen yang anda gunakan pada"]
[null,null,"Fase",null,"D",null,null,null,null,null,null,null,null,"Proyek 5 Penguatan Profil Pelajar Pancasila secara berurutan dari Dimensi,"]
[null,null,"Kelas",null,"II",null,null,null,null,null,null,null,null,"Elemen dan Sub Elemen (dari kiri ke kanan)"]
[null,null,null,null,null,null,null,null,null,null,null,null,null,"Capaian Tiap Fase akan berubah otomatis, tidak perlu diubah."]
[]
[null,null,"Dimensi 1",null,null,null,"Elemen 1",null,null,null,"Sub Elemen 1",null,null,null,null,{"$f":"\"Capaian Fase \"&$E$7","v":"Capaian Fase D"}]
[]
[null,null,"Berkebhinekaan Global",null,null,null,"Refleksi dan bertanggung jawab terhadap pengalaman kebinekaan",null,null,null,"Refleksi terhadap pengalaman kebinekaan",null,null,null,null,{"$f":"INDEX(ELSUBFASE!$C$11:$H$52,MATCH(PROYEK5!K13,ELSUBFASE!$B$11:$B$52,0),MATCH(PROYEK5!E7,ELSUBFASE!$C$10:$H$10,0))","v":"Merefleksikan secara kritis gambaran berbagai kelompok budaya yang ditemui dan cara meresponnya."}]
[]
[]
[]
[null,null,"Dimensi 2",null,null,null,"Elemen 2",null,null,null,"Sub Elemen 2",null,null,null,null,{"$f":"\"Capaian Fase \"&$E$7","v":"Capaian Fase D"}]
[]
[null,null,"Bernalar Kritis",null,null,null,"Refleksi pemikiran dan proses berpikir",null,null,null,"Merefleksi dan mengevaluasi pemikirannya sendiri",null,null,null,null,{"$f":"INDEX(ELSUBFASE!C11:H52,MATCH(PROYEK5!K19,ELSUBFASE!B11:B52,0),MATCH(PROYEK5!E7,ELSUBFASE!C10:H10,0))","v":"Menjelaskan asumsi yang digunakan, menyadari kecenderungan dan konsekuensi bias pada pemikirannya, serta berusaha mempertimbangkan perspektif yang berbeda."}]
[]
[]
[]
[null,null,"Dimensi 3",null,null,null,"Elemen 3",null,null,null,"Sub Elemen 3",null,null,null,null,{"$f":"\"Capaian Fase \"&$E$7","v":"Capaian Fase D"}]
[]
[null,null,"Bergotong-Royong",null,null,null,"Kepedulian",null,null,null,"Persepsi sosial",null,null,null,null,{"$f":"INDEX(ELSUBFASE!C11:H52,MATCH(PROYEK5!K25,ELSUBFASE!B11:B52,0),MATCH(PROYEK5!E7,ELSUBFASE!C10:H10,0))","v":"Menggunakan pengetahuan tentang sebab dan alasan orang lain menampilkan reaksi tertentu untuk menentukan tindakan yang tepat agar orang lain menampilkan respon yang diharapkan."}]
[]
[]
[]
[null,null,"Dimensi 4",null,null,null,"Elemen 4",null,null,null,"Sub Elemen 4",null,null,null,null,{"$f":"\"Capaian Fase \"&$E$7","v":"Capaian Fase D"}]
[]
[null,null,"Mandiri",null,null,null,"Pemahaman diri dan situasi yang dihadapi",null,null,null,"Mengenali kualitas dan minat diri serta tantangan yang dihadapi",null,null,null,null,{"$f":"INDEX(ELSUBFASE!C11:H52,MATCH(PROYEK5!K31,ELSUBFASE!B11:B52,0),MATCH(PROYEK5!E7,ELSUBFASE!C10:H10,0))","v":"Membuat penilaian yang realistis terhadap kemampuan dan minat , serta prioritas pengembangan diri berdasarkan pengalaman belajar dan aktivitas lain yang dilakukannya."}]
[]
[]
[]
[null,null,"Dimensi 5",null,null,null,"Elemen 5",null,null,null,"Sub Elemen 5",null,null,null,null,{"$f":"\"Capaian Fase \"&$E$7","v":"Capaian Fase D"}]
[]
[null,null,"Bernalar Kritis",null,null,null,"Refleksi pemikiran dan proses berpikir",null,null,null,"Merefleksi dan mengevaluasi pemikirannya sendiri",null,null,null,null,{"$f":"INDEX(ELSUBFASE!C11:H52,MATCH(PROYEK5!K37,ELSUBFASE!B11:B52,0),MATCH(PROYEK5!E7,ELSUBFASE!C10:H10,0))","v":"Menjelaskan asumsi yang digunakan, menyadari kecenderungan dan konsekuensi bias pada pemikirannya, serta berusaha mempertimbangkan perspektif yang berbeda."}]
[]
[]
[]
[null,null,"Dimensi 6",null,null,null,"Elemen 6",null,null,null,"Sub Elemen 6",null,null,null,null,{"$f":"\"Capaian Fase \"&$E$7","v":"Capaian Fase D"}]
[]
[null,null,"Kreatif",null,null,null,"Menganalisis dan mengevaluasi penalaran dan prosedurnya",null,null,null,"Menganalisis dan mengevaluasi penalaran dan prosedurnya",null,null,null,null,{"$f":"INDEX(ELSUBFASE!C11:H52,MATCH(PROYEK5!K43,ELSUBFASE!B11:B52,0),MATCH(PROYEK5!E7,ELSUBFASE!C10:H10,0))","v":"Membuktikan penalaran dengan berbagai argumen dalam mengambil suatu simpulan atau keputusan."}]
[]
[]
[]
[null,null,"Dimensi 7",null,null,null,"Elemen 7",null,null,null,"Sub Elemen 7",null,null,null,null,{"$f":"\"Capaian Fase \"&$E$7","v":"Capaian Fase D"}]
[]
[null,null,"Berkebhinekaan Global",null,null,null,"Komunikasi dan interaksi antar budaya",null,null,null,"Berkomunikasi antar budaya",null,null,null,null,{"$f":"INDEX(ELSUBFASE!C11:H52,MATCH(PROYEK5!K49,ELSUBFASE!B11:B52,0),MATCH(PROYEK5!E7,ELSUBFASE!C10:H10,0))","v":"Mengeksplorasi pengaruh budaya terhadap penggunaan bahasa serta dapat mengenali risiko dalam berkomunikasi antar budaya."}]

{"sheet":"PENILAIAN5","index":21,"n_rows":63,"n_cols":32,"rows_kept":63,"cut":false,"hidden":false,"merged":[[2,2,2,31],[11,2,12,2],[11,3,12,3],[11,4,11,7],[11,8,11,11],[11,12,11,15],[11,16,11,19],[11,20,11,23],[11,24,11,27],[11,28,11,31]]}
[]
[]
[null,null,"PENILAIAN PADA PROYEK 5"]
[]
[null,"Judul Proyek 5",null,{"$f":"IDENTITAS!H13","v":"Tuliskan Judul Proyek yang anda lakukan di sekolah anda"},null,"Keterangan:",null,null,null,null,null,null,null,null,null,null,null,null,"Petunjuk"]
[null,"Fase",null,{"$f":"PROYEK1!E7","v":0},null,"BB","Belum Berkembang",null,null,null,null,null,null,null,null,null,null,null,"Berikan tanda ceklist pada salah satu kolom yang dicapai peserta didik pada capaian "]
[null,"Kelas",null,{"$f":"PROYEK1!E8","v":0},null,"MB","Mulai Berkembang",null,null,null,null,null,null,null,null,null,null,null,"subelemen per fase. Sesuaikan dengan rubrik penilaian dengan mempertimbangkan "]
[null,"Tahun Ajaran",null,{"$f":"IDENTITAS!$D$21","v":0},null,"BSH","Berkembang Sesuai Harapan",null,null,null,null,null,null,null,null,null,null,null,"jurnal guru, portofolio siswa, dan lain sebagainya."]
[null,null,null,null,null,"SB","Sangat Berkembang",null,null,null,null,null,null,null,null,null,null,null,null,null,"Simbol untuk di copy.",null,null,null,null,"P"]
[]
[]
[null,null,"NO","NAMA",{"$f":"PROYEK5!P13","v":"Merefleksikan secara kritis gambaran berbagai kelompok budaya yang ditemui dan cara meresponnya."},null,null,null,{"$f":"PROYEK5!P19","v":"Menjelaskan asumsi yang digunakan, menyadari kecenderungan dan konsekuensi bias pada pemikirannya, serta berusaha mempertimbangkan perspektif yang berbeda."},null,null,null,{"$f":"PROYEK5!P25","v":"Menggunakan pengetahuan tentang sebab dan alasan orang lain menampilkan reaksi tertentu untuk menentukan tindakan yang tepat agar orang lain menampilkan respon yang diharapkan."},null,null,null,{"$f":"PROYEK5!P31","v":"Membuat penilaian yang realistis terhadap kemampuan dan minat , serta prioritas pengembangan diri berdasarkan pengalaman belajar dan aktivitas lain yang dilakukannya."},null,null,null,{"$f":"PROYEK5!P37","v":"Menjelaskan asumsi yang digunakan, menyadari kecenderungan dan konsekuensi bias pada pemikirannya, serta berusaha mempertimbangkan perspektif yang berbeda."},null,null,null,{"$f":"PROYEK5!P43","v":"Membuktikan penalaran dengan berbagai argumen dalam mengambil suatu simpulan atau keputusan."},null,null,null,{"$f":"PROYEK5!P49","v":"Mengeksplorasi pengaruh budaya terhadap penggunaan bahasa serta dapat mengenali risiko dalam berkomunikasi antar budaya."}]
[null,null,null,null,"BB","MB","BSH","SB","BB","MB","BSH","SB","BB","MB","BSH","SB","BB","MB","BSH","SB","BB","MB","BSH","SB","BB","MB","BSH","SB","BB","MB","BSH","SB"]
[null,null,1,{"$f":"'Data Siswa'!D6","v":0}]
[null,null,2,{"$f":"'Data Siswa'!D7","v":0}]
[null,null,3,{"$f":"'Data Siswa'!D8","v":0}]
[null,null,4,{"$f":"'Data Siswa'!D9","v":0}]
[null,null,5,{"$f":"'Data Siswa'!D10","v":0}]
[null,null,6,{"$f":"'Data Siswa'!D11","v":0}]
[null,null,7,{"$f":"'Data Siswa'!D12","v":0}]
[null,null,8,{"$f":"'Data Siswa'!D13","v":0}]
[null,null,9,{"$f":"'Data Siswa'!D14","v":0}]
[null,null,10,{"$f":"'Data Siswa'!D15","v":0}]
[null,null,11,{"$f":"'Data Siswa'!D16","v":0}]
[null,null,12,{"$f":"'Data Siswa'!D17","v":0}]
[null,null,13,{"$f":"'Data Siswa'!D18","v":0}]
[null,null,14,{"$f":"'Data Siswa'!D19","v":0}]
[null,null,15,{"$f":"'Data Siswa'!D20","v":0}]
[null,null,16,{"$f":"'Data Siswa'!D21","v":0}]
[null,null,17,{"$f":"'Data Siswa'!D22","v":0}]
[null,null,18,{"$f":"'Data Siswa'!D23","v":0}]
[null,null,19,{"$f":"'Data Siswa'!D24","v":0}]
[null,null,20,{"$f":"'Data Siswa'!D25","v":0}]
[null,null,21,{"$f":"'Data Siswa'!D26","v":0}]
[null,null,22,{"$f":"'Data Siswa'!D27","v":0}]
[null,null,23,{"$f":"'Data Siswa'!D28","v":0}]
[null,null,24,{"$f":"'Data Siswa'!D29","v":0}]
[null,null,25,{"$f":"'Data Siswa'!D30","v":0}]
[null,null,26,{"$f":"'Data Siswa'!D31","v":0}]
[null,null,27,{"$f":"'Data Siswa'!D32","v":0}]
[null,null,28,{"$f":"'Data Siswa'!D33","v":0}]
[null,null,29,{"$f":"'Data Siswa'!D34","v":0}]
[null,null,30,{"$f":"'Data Siswa'!D35","v":0}]
[null,null,31,{"$f":"'Data Siswa'!D36","v":0}]
[null,null,32,{"$f":"'Data Siswa'!D37","v":0}]
[null,null,33,{"$f":"'Data Siswa'!D38","v":0}]
[null,null,34,{"$f":"'Data Siswa'!D39","v":0}]
[null,null,35,{"$f":"'Data Siswa'!D40","v":0}]
[null,null,36,{"$f":"'Data Siswa'!D41","v":0}]
[null,null,37,{"$f":"'Data Siswa'!D42","v":0}]
[null,null,38,{"$f":"'Data Siswa'!D43","v":0}]
[null,null,39,{"$f":"'Data Siswa'!D44","v":0}]
[null,null,40,{"$f":"'Data Siswa'!D45","v":0}]
[null,null,41,{"$f":"'Data Siswa'!D46","v":0}]
[null,null,42,{"$f":"'Data Siswa'!D47","v":0}]
[null,null,43,{"$f":"'Data Siswa'!D48","v":0}]
[null,null,44,{"$f":"'Data Siswa'!D49","v":0}]
[null,null,45,{"$f":"'Data Siswa'!D50","v":0}]
[null,null,46,{"$f":"'Data Siswa'!D51","v":0}]
[null,null,47,{"$f":"'Data Siswa'!D52","v":0}]
[null,null,48,{"$f":"'Data Siswa'!D53","v":0}]
[null,null,49,{"$f":"'Data Siswa'!D54","v":0}]
[null,null,50,{"$f":"'Data Siswa'!D55","v":0}]

{"sheet":"ISI6","index":22,"n_rows":19,"n_cols":13,"rows_kept":19,"cut":false,"hidden":false,"merged":[[2,1,2,16],[3,1,3,16],[7,12,14,14],[8,2,14,4]]}
[]
[]
[null,"DATA KEGIATAN 6"]
[null,"PROYEK PENGUATAN PROFIL PELAJAR PANCASILA"]
[]
[null,null,null,null,null,null,"Judul Proyek 6",null,{"$f":"\": \"&IDENTITAS!H15","v":": Untuk Pengisian NIP diawal dengan tanda koma atas (')"}]
[]
[null,null,null,null,null,null,null,null,null,null,null,null,"Silahkan input penilaian akhir siswa tiap sub elemen sesuai dengan capaian per fasenya berdasarkan jurnal pendidik, portolio peserta didik, dll."]
[null,null,"Silahkan input data Proyek 1 sesuai dengan yang sudah diidentifikasi pada modul proyek anda"]
[]
[]
[]
[]
[]
[]
[]
[]
[null,null,null,null,null,null,null,"Kembali ke halaman awal"]
[null,null,null,null,null,null,null,"Kembali ke halaman sebelumnya"]

{"sheet":"PROYEK6","index":23,"n_rows":49,"n_cols":16,"rows_kept":49,"cut":false,"hidden":false,"merged":[[2,2,2,19],[5,4,5,8],[10,2,11,4],[10,6,11,8],[10,10,11,13],[10,15,11,19],[12,2,14,4],[12,6,14,8],[12,10,14,13],[12,15,14,19],[16,2,17,4],[16,6,17,8],[16,10,17,13],[16,15,17,19],[18,2,20,4],[18,6,20,8],[18,10,20,13],[18,15,20,19],[22,2,23,4],[22,6,23,8],[22,10,23,13],[22,15,23,19],[24,2,26,4],[24,6,26,8],[24,10,26,13],[24,15,26,19],[28,2,29,4],[28,6,29,8],[28,10,29,13],[28,15,29,19],[30,2,32,4],[30,6,32,8],[30,10,32,13],[30,15,32,19],[34,2,35,4],[34,6,35,8],[34,10,35,13],[34,15,35,19],[36,2,38,4],[36,6,38,8],[36,10,38,13],[36,15,38,19],[40,2,41,4],[40,6,41,8],[40,10,41,13],[40,15,41,19],[48,2,50,4],[48,6,50,8],[48,10,50,13],[48,15,50,19],[42,2,44,4],[42,6,44,8],[42,10,44,13],[42,15,44,19],[46,2,47,4],[46,6,47,8],[46,10,47,13],[46,15,47,19]]}
[]
[]
[null,null,"INPUT DIMENSI, ELEMEN, DAN SUB ELEMEN PROYEK 6"]
[]
[]
[null,null,"Judul Proyek 6",null,{"$f":"IDENTITAS!H15","v":"Untuk Pengisian NIP diawal dengan tanda koma atas (')"},null,null,null,null,null,null,null,null,"Silahkan pilih dimensi, elemen dan sub elemen yang anda gunakan pada"]
[null,null,"Fase",null,"D",null,null,null,null,null,null,null,null,"Proyek 6 Penguatan Profil Pelajar Pancasila secara berurutan dari Dimensi,"]
[null,null,"Kelas",null,"II",null,null,null,null,null,null,null,null,"Elemen dan Sub Elemen (dari kiri ke kanan)"]
[null,null,null,null,null,null,null,null,null,null,null,null,null,"Capaian Tiap Fase akan berubah otomatis, tidak perlu diubah."]
[]
[null,null,"Dimensi 1",null,null,null,"Elemen 1",null,null,null,"Sub Elemen 1",null,null,null,null,{"$f":"\"Capaian Fase \"&$E$7","v":"Capaian Fase D"}]
[]
[null,null,"Berkebhinekaan Global",null,null,null,"Refleksi dan bertanggung jawab terhadap pengalaman kebinekaan",null,null,null,"Refleksi terhadap pengalaman kebinekaan",null,null,null,null,{"$f":"INDEX(ELSUBFASE!$C$11:$H$52,MATCH(PROYEK6!K13,ELSUBFASE!$B$11:$B$52,0),MATCH(PROYEK6!E7,ELSUBFASE!$C$10:$H$10,0))","v":"Merefleksikan secara kritis gambaran berbagai kelompok budaya yang ditemui dan cara meresponnya."}]
[]
[]
[]
[null,null,"Dimensi 2",null,null,null,"Elemen 2",null,null,null,"Sub Elemen 2",null,null,null,null,{"$f":"\"Capaian Fase \"&$E$7","v":"Capaian Fase D"}]
[]
[null,null,"Bernalar Kritis",null,null,null,"Refleksi pemikiran dan proses berpikir",null,null,null,"Merefleksi dan mengevaluasi pemikirannya sendiri",null,null,null,null,{"$f":"INDEX(ELSUBFASE!C11:H52,MATCH(PROYEK6!K19,ELSUBFASE!B11:B52,0),MATCH(PROYEK6!E7,ELSUBFASE!C10:H10,0))","v":"Menjelaskan asumsi yang digunakan, menyadari kecenderungan dan konsekuensi bias pada pemikirannya, serta berusaha mempertimbangkan perspektif yang berbeda."}]
[]
[]
[]
[null,null,"Dimensi 3",null,null,null,"Elemen 3",null,null,null,"Sub Elemen 3",null,null,null,null,{"$f":"\"Capaian Fase \"&$E$7","v":"Capaian Fase D"}]
[]
[null,null,"Bergotong-Royong",null,null,null,"Kepedulian",null,null,null,"Persepsi sosial",null,null,null,null,{"$f":"INDEX(ELSUBFASE!C11:H52,MATCH(PROYEK6!K25,ELSUBFASE!B11:B52,0),MATCH(PROYEK6!E7,ELSUBFASE!C10:H10,0))","v":"Menggunakan pengetahuan tentang sebab dan alasan orang lain menampilkan reaksi tertentu untuk menentukan tindakan yang tepat agar orang lain menampilkan respon yang diharapkan."}]
[]
[]
[]
[null,null,"Dimensi 4",null,null,null,"Elemen 4",null,null,null,"Sub Elemen 4",null,null,null,null,{"$f":"\"Capaian Fase \"&$E$7","v":"Capaian Fase D"}]
[]
[null,null,"Mandiri",null,null,null,"Pemahaman diri dan situasi yang dihadapi",null,null,null,"Mengenali kualitas dan minat diri serta tantangan yang dihadapi",null,null,null,null,{"$f":"INDEX(ELSUBFASE!C11:H52,MATCH(PROYEK6!K31,ELSUBFASE!B11:B52,0),MATCH(PROYEK6!E7,ELSUBFASE!C10:H10,0))","v":"Membuat penilaian yang realistis terhadap kemampuan dan minat , serta prioritas pengembangan diri berdasarkan pengalaman belajar dan aktivitas lain yang dilakukannya."}]
[]
[]
[]
[null,null,"Dimensi 5",null,null,null,"Elemen 5",null,null,null,"Sub Elemen 5",null,null,null,null,{"$f":"\"Capaian Fase \"&$E$7","v":"Capaian Fase D"}]
[]
[null,null,"Bernalar Kritis",null,null,null,"Refleksi pemikiran dan proses berpikir",null,null,null,"Merefleksi dan mengevaluasi pemikirannya sendiri",null,null,null,null,{"$f":"INDEX(ELSUBFASE!C11:H52,MATCH(PROYEK6!K37,ELSUBFASE!B11:B52,0),MATCH(PROYEK6!E7,ELSUBFASE!C10:H10,0))","v":"Menjelaskan asumsi yang digunakan, menyadari kecenderungan dan konsekuensi bias pada pemikirannya, serta berusaha mempertimbangkan perspektif yang berbeda."}]
[]
[]
[]
[null,null,"Dimensi 6",null,null,null,"Elemen 6",null,null,null,"Sub Elemen 6",null,null,null,null,{"$f":"\"Capaian Fase \"&$E$7","v":"Capaian Fase D"}]
[]
[null,null,"Kreatif",null,null,null,"Menganalisis dan mengevaluasi penalaran dan prosedurnya",null,null,null,"Menganalisis dan mengevaluasi penalaran dan prosedurnya",null,null,null,null,{"$f":"INDEX(ELSUBFASE!C11:H52,MATCH(PROYEK6!K43,ELSUBFASE!B11:B52,0),MATCH(PROYEK6!E7,ELSUBFASE!C10:H10,0))","v":"Membuktikan penalaran dengan berbagai argumen dalam mengambil suatu simpulan atau keputusan."}]
[]
[]
[]
[null,null,"Dimensi 7",null,null,null,"Elemen 7",null,null,null,"Sub Elemen 7",null,null,null,null,{"$f":"\"Capaian Fase \"&$E$7","v":"Capaian Fase D"}]
[]
[null,null,"Bergotong-Royong",null,null,null,"Kolaborasi",null,null,null,"Kerja sama",null,null,null,null,{"$f":"INDEX(ELSUBFASE!C11:H52,MATCH(PROYEK6!K49,ELSUBFASE!B11:B52,0),MATCH(PROYEK6!E7,ELSUBFASE!C10:H10,0))","v":"Menyelaraskan tindakan sendiri dengan tindakan orang lain untuk melaksanakan kegiatan dan mencapai tujuan kelompok di lingkungan sekitar, serta memberi semangat kepada orang lain untuk bekerja efektif dan mencapai tujuan bersama."}]

{"sheet":"PENILAIAN6","index":24,"n_rows":63,"n_cols":32,"rows_kept":63,"cut":false,"hidden":false,"merged":[[2,2,2,31],[11,2,12,2],[11,3,12,3],[11,4,11,7],[11,8,11,11],[11,12,11,15],[11,16,11,19],[11,20,11,23],[11,24,11,27],[11,28,11,31]]}
[]
[]
[null,null,"PENILAIAN PADA PROYEK 6"]
[]
[null,"Judul Proyek 6",null,{"$f":"IDENTITAS!H15","v":"Untuk Pengisian NIP diawal dengan tanda koma atas (')"},null,"Keterangan:",null,null,null,null,null,null,null,null,null,null,null,null,"Petunjuk"]
[null,"Fase",null,{"$f":"PROYEK1!E7","v":0},null,"BB","Belum Berkembang",null,null,null,null,null,null,null,null,null,null,null,"Berikan tanda ceklist pada salah satu kolom yang dicapai peserta didik pada capaian "]
[null,"Kelas",null,{"$f":"PROYEK1!E8","v":0},null,"MB","Mulai Berkembang",null,null,null,null,null,null,null,null,null,null,null,"subelemen per fase. Sesuaikan dengan rubrik penilaian dengan mempertimbangkan "]
[null,"Tahun Ajaran",null,{"$f":"IDENTITAS!$D$21","v":0},null,"BSH","Berkembang Sesuai Harapan",null,null,null,null,null,null,null,null,null,null,null,"jurnal guru, portofolio siswa, dan lain sebagainya."]
[null,null,null,null,null,"SB","Sangat Berkembang",null,null,null,null,null,null,null,null,null,null,null,null,null,"Simbol untuk di copy.",null,null,null,null,"P"]
[]
[]
[null,null,"NO","NAMA",{"$f":"PROYEK6!P13","v":"Merefleksikan secara kritis gambaran berbagai kelompok budaya yang ditemui dan cara meresponnya."},null,null,null,{"$f":"PROYEK6!P19","v":"Menjelaskan asumsi yang digunakan, menyadari kecenderungan dan konsekuensi bias pada pemikirannya, serta berusaha mempertimbangkan perspektif yang berbeda."},null,null,null,{"$f":"PROYEK6!P25","v":"Menggunakan pengetahuan tentang sebab dan alasan orang lain menampilkan reaksi tertentu untuk menentukan tindakan yang tepat agar orang lain menampilkan respon yang diharapkan."},null,null,null,{"$f":"PROYEK6!P31","v":"Membuat penilaian yang realistis terhadap kemampuan dan minat , serta prioritas pengembangan diri berdasarkan pengalaman belajar dan aktivitas lain yang dilakukannya."},null,null,null,{"$f":"PROYEK6!P37","v":"Menjelaskan asumsi yang digunakan, menyadari kecenderungan dan konsekuensi bias pada pemikirannya, serta berusaha mempertimbangkan perspektif yang berbeda."},null,null,null,{"$f":"PROYEK6!P43","v":"Membuktikan penalaran dengan berbagai argumen dalam mengambil suatu simpulan atau keputusan."},null,null,null,{"$f":"PROYEK6!P49","v":"Menyelaraskan tindakan sendiri dengan tindakan orang lain untuk melaksanakan kegiatan dan mencapai tujuan kelompok di lingkungan sekitar, serta memberi semangat kepada orang lain untuk bekerja efektif dan mencapai tujuan bersama."}]
[null,null,null,null,"BB","MB","BSH","SB","BB","MB","BSH","SB","BB","MB","BSH","SB","BB","MB","BSH","SB","BB","MB","BSH","SB","BB","MB","BSH","SB","BB","MB","BSH","SB"]
[null,null,1,{"$f":"'Data Siswa'!D6","v":0}]
[null,null,2,{"$f":"'Data Siswa'!D7","v":0}]
[null,null,3,{"$f":"'Data Siswa'!D8","v":0}]
[null,null,4,{"$f":"'Data Siswa'!D9","v":0}]
[null,null,5,{"$f":"'Data Siswa'!D10","v":0}]
[null,null,6,{"$f":"'Data Siswa'!D11","v":0}]
[null,null,7,{"$f":"'Data Siswa'!D12","v":0}]
[null,null,8,{"$f":"'Data Siswa'!D13","v":0}]
[null,null,9,{"$f":"'Data Siswa'!D14","v":0}]
[null,null,10,{"$f":"'Data Siswa'!D15","v":0}]
[null,null,11,{"$f":"'Data Siswa'!D16","v":0}]
[null,null,12,{"$f":"'Data Siswa'!D17","v":0}]
[null,null,13,{"$f":"'Data Siswa'!D18","v":0}]
[null,null,14,{"$f":"'Data Siswa'!D19","v":0}]
[null,null,15,{"$f":"'Data Siswa'!D20","v":0}]
[null,null,16,{"$f":"'Data Siswa'!D21","v":0}]
[null,null,17,{"$f":"'Data Siswa'!D22","v":0}]
[null,null,18,{"$f":"'Data Siswa'!D23","v":0}]
[null,null,19,{"$f":"'Data Siswa'!D24","v":0}]
[null,null,20,{"$f":"'Data Siswa'!D25","v":0}]
[null,null,21,{"$f":"'Data Siswa'!D26","v":0}]
[null,null,22,{"$f":"'Data Siswa'!D27","v":0}]
[null,null,23,{"$f":"'Data Siswa'!D28","v":0}]
[null,null,24,{"$f":"'Data Siswa'!D29","v":0}]
[null,null,25,{"$f":"'Data Siswa'!D30","v":0}]
[null,null,26,{"$f":"'Data Siswa'!D31","v":0}]
[null,null,27,{"$f":"'Data Siswa'!D32","v":0}]
[null,null,28,{"$f":"'Data Siswa'!D33","v":0}]
[null,null,29,{"$f":"'Data Siswa'!D34","v":0}]
[null,null,30,{"$f":"'Data Siswa'!D35","v":0}]
[null,null,31,{"$f":"'Data Siswa'!D36","v":0}]
[null,null,32,{"$f":"'Data Siswa'!D37","v":0}]
[null,null,33,{"$f":"'Data Siswa'!D38","v":0}]
[null,null,34,{"$f":"'Data Siswa'!D39","v":0}]
[null,null,35,{"$f":"'Data Siswa'!D40","v":0}]
[null,null,36,{"$f":"'Data Siswa'!D41","v":0}]
[null,null,37,{"$f":"'Data Siswa'!D42","v":0}]
[null,null,38,{"$f":"'Data Siswa'!D43","v":0}]
[null,null,39,{"$f":"'Data Siswa'!D44","v":0}]
[null,null,40,{"$f":"'Data Siswa'!D45","v":0}]
[null,null,41,{"$f":"'Data Siswa'!D46","v":0}]
[null,null,42,{"$f":"'Data Siswa'!D47","v":0}]
[null,null,43,{"$f":"'Data Siswa'!D48","v":0}]
[null,null,44,{"$f":"'Data Siswa'!D49","v":0}]
[null,null,45,{"$f":"'Data Siswa'!D50","v":0}]
[null,null,46,{"$f":"'Data Siswa'!D51","v":0}]
[null,null,47,{"$f":"'Data Siswa'!D52","v":0}]
[null,null,48,{"$f":"'Data Siswa'!D53","v":0}]
[null,null,49,{"$f":"'Data Siswa'!D54","v":0}]
[null,null,50,{"$f":"'Data Siswa'!D55","v":0}]

{"sheet":"DIMEL","index":25,"n_rows":23,"n_cols":7,"rows_kept":23,"cut":false,"hidden":false,"merged":[]}
[]
[]
[null,"Beriman, Bertakwa Kepada Tuhan Yang Maha Esa, dan Berakhlak Mulia ","Berkebhinekaan Global","Bergotong-Royong","Mandiri","Bernalar Kritis","Kreatif"]
[null,"Akhlak Beragama","Mengenal dan menghargai budaya","Kolaborasi","Pemahaman diri dan situasi yang dihadapi","Memperoleh dan memproses informasi dan gagasan","Menghasilkan gagasan yang orisinal"]
[null,"Akhlak Pribadi","Komunikasi dan interaksi antar budaya","Kepedulian","Regulasi Diri","Menganalisis dan mengevaluasi penalaran dan prosedurnya","Menghasilkan karya dan tindakan yang orisinal"]
[null,"Akhlak Kepada Manusia","Refleksi dan bertanggung jawab terhadap pengalaman kebinekaan","Berbagi",null,"Refleksi pemikiran dan proses berpikir","Memiliki keluwesan berpikir dalam mencari alternatif solusi permasalahan"]
[null,"Akhlak Kepada Alam","Berkeadilan Sosial"]
[null,"Akhlak Bernegara"]
[]
[null,"A1"]
[null,"A2"]
[null,"I"]
[null,"II"]
[null,"III"]
[null,"IV"]
[null,"V"]
[null,"VI"]
[null,"VII"]
[null,"VIII"]
[null,"IX"]
[null,"X"]
[null,"XI"]
[null,"XII"]

{"sheet":"ELSUBFASE","index":26,"n_rows":52,"n_cols":21,"rows_kept":52,"cut":false,"hidden":false,"merged":[]}
[]
[null,1,null,null,null,null,2,null,null,null,3,null,null,4,null,5,null,null,6]
[null,"Akhlak Beragama","Akhlak Pribadi","Akhlak Kepada Manusia","Akhlak Kepada Alam","Akhlak Bernegara","Mengenal dan menghargai budaya","Komunikasi dan interaksi antar budaya","Refleksi dan bertanggung jawab terhadap pengalaman kebinekaan","Berkeadilan Sosial","Kolaborasi","Kepedulian","Berbagi","Pemahaman diri dan situasi yang dihadapi","Regulasi Diri","Memperoleh dan memproses informasi dan gagasan","Menganalisis dan mengevaluasi penalaran dan prosedurnya","Refleksi pemikiran dan proses berpikir","Menghasilkan gagasan yang orisinal","Menghasilkan karya dan tindakan yang orisinal","Memiliki keluwesan berpikir dalam mencari alternatif solusi permasalahan"]
[null,"Mengenal dan Mencintai Tuhan Yang Maha Esa","Integritas","Mengutamakan persamaan dengan orang lain dan menghargai perbedaan","Memahami Keterhubungan Ekosistem Bumi","Melaksanakan Hak dan Kewajiban sebagai Warga Negara Indonesia","Mendalami budaya dan identitas budaya","Berkomunikasi antar budaya","Refleksi terhadap pengalaman kebinekaan","Aktif membangun masyarakat yang inklusif, adil, dan berkelanjutan","Kerja sama","Tanggap terhadap lingkungan Sosial","Berbagi","Mengenali kualitas dan minat diri serta tantangan yang dihadapi","Regulasi emosi","Mengajukan pertanyaan","Menganalisis dan mengevaluasi penalaran dan prosedurnya","Merefleksi dan mengevaluasi pemikirannya sendiri","Menghasilkan gagasan yang orisinal","Menghasilkan karya dan tindakan yang orisinal","Memiliki keluwesan berpikir dalam mencari alternatif solusi permasalahan"]
[null,"Pemahaman Agama/Kepercayaan","Merawat Diri secara Fisik, Mental dan Spiritual","Berempati kepada orang lain","Menjaga Lingkungan Alam Sekitar",null,"Mengeksplorasi dan membandingkan pengetahuan budaya, kepercayaan, serta praktiknya","Mempertimbangkan dan menumbuhkan berbagai perspektif","Menghilangkan stereotip dan prasangka","Berpartisipasi dalam proses pengambilan keputusan bersama","Komunikasi untuk mencapai tujuan bersama","Persepsi sosial",null,"Mengembangkan refleksi diri","Penetapan tujuan belajar, prestasi, dan pengembangan diri serta rencana strategis untuk mencapainya","Mengidentifikasi, mengklarifikasi, dan mengolah informasi dan gagasan"]
[null,"Pelaksanaan Ritual Ibadah",null,null,null,null,"Menumbuhkan rasa menghormati terhadap keanekaragaman budaya",null,"Menyelaraskan perbedaan budaya","Memahami peran individu dalam demokrasi","Saling-ketergantungan positif",null,null,null,"Menunjukkan inisiatif dan bekerja secara mandiri"]
[null,null,null,null,null,null,null,null,null,null,"Koordinasi Sosial",null,null,null,"Mengembangkan pengendalian dan disiplin diri"]
[null,null,null,null,null,null,null,null,null,null,null,null,null,null,"Percaya diri, tangguh (resilient), dan adaptif"]
[]
[null,"Subelemen","PAUD","A","B","C","D","E"]
["1.1","Mengenal dan Mencintai Tuhan Yang Maha Esa","Mengenali adanya Tuhan melalui sifat-sifat-Nya","Mengenali sifat-sifat utama Tuhan bahwa Ia Maha Esa dan Ia adalah Sang Pencipta yang Maha Pengasih dan Maha Penyayang dan mengenali kebaikan dirinya sebagai cerminan sifat Tuhan","Memahami sifat-sifat Tuhan utama lainnya dan mengaitkan sifatsifat tersebut dengan konsep dirinya dan ciptaan-Nya","Memahami berbagai kualitas atau sifat-sifat Tuhan yang diutarakan dalam kitab suci agama masing-masing dan menghubungkan kualitas-kualitas positif Tuhan dengan sikap pribadinya, serta meyakini firman Tuhan sebagai kebenaran","Memahami kehadiran Tuhan dalam kehidupan sehari-hari serta mengaitkan pemahamannya tentang kualitas atau sifat-sifat Tuhan dengan konsep peran manusia di bumi sebagai makhluk Tuhan yang bertanggung jawab.","Menerapkan pemahamannya tentang kualitas atau sifat-sifat Tuhan dalam ritual ibadahnya baik ibadah yang bersifat personal maupun sosial."]
[null,"Pemahaman Agama/Kepercayaan","Mengenali simbol-simbol dan ekspresi keagamaan yang konkrit","Mengenali unsur-unsur utama agama/kepercayaan (ajaran, ritual keagamaan, kitab suci, dan orang suci/ utusan Tuhan YME).","Mengenali unsur-unsur utama agama/kepercayaan (simbol-simbol keagamaan dan sejarah agama/ kepercayaan)","Memahami unsur-unsur utama agama/kepercayaan, dan mengenali peran agama/kepercayaan dalam kehidupan serta memahami ajaran moral agama.","Memahami makna dan fungsi, unsur-unsur utama agama /kepercayaan dalam konteks Indonesia, membaca kitab suci, serta memahami ajaran agama/ kepercayaan terkait hubungan sesama manusia dan alam semesta.","Memahami struktur organisasi, unsur-unsur utama agama /kepercayaan dalam konteks Indonesia, memahami kontribusi agama/kepercayaan terhadap peradaban dunia."]
[null,"Pelaksanaan Ritual Ibadah","Mulai mencontoh kebiasaan pelaksanaan ibadah sesuai agama/kepercayaannya","Terbiasa melaksanakan ibadah sesuai ajaran agama/kepercayaannya","Terbiasa melaksanakan ibadah wajib sesuai tuntunan agama/kepercayaannya","Melaksanakan ibadah secara rutin sesuai dengan tuntunan agama/kepercayaan, berdoa mandiri, merayakan, dan memahami makna hari-hari besarnya","Melaksanakan ibadah secara rutin dan mandiri sesuai dengan tuntunan agama/kepercayaan, serta berpartisipasi pada perayaan hari-hari besarnya","Melaksanakan ibadah secara rutin dan mandiri serta menyadari arti penting ibadah tersebut dan berpartisipasi aktif pada kegiatan keagamaan atau kepercayaan"]
["1.2","Integritas","Mulai membiasakan bersikap jujur dan berani menyampaikan kebenaran atau fakta","Membiasakan bersikap jujur terhadap diri sendiri dan orang lain dan berani menyampaikan kebenaran atau fakta","Membiasakan melakukan refleksi tentang pentingnya bersikap jujur dan berani menyampaikan kebenaran atau fakta","Berani dan konsisten menyampaikan kebenaran atau fakta serta memahami konsekuensi-konsekuensinya untuk diri sendiri","Berani dan konsisten menyampaikan kebenaran atau fakta serta memahami konsekuensi-konsekuensinya untuk diri sendiri dan orang lain","Menyadari bahwa aturan agama dan sosial merupakan aturan yang baik dan menjadi bagian dari diri sehingga bisa menerapkannya secara bijak dan kontekstual"]
[null,"Merawat Diri secara Fisik, Mental dan Spiritual","Membiasakan diri untuk membersihkan, merawat tubuh serta menjaga kesehatan dan keselamatan/keamanan diri dalam semua aktivitas kesehariannya","Memiliki rutinitas sederhana yang diatur secara mandiri dan dijalankan sehari-hari serta menjaga kesehatan dan keselamatan/keamanan diri dalam semua aktivitas kesehariannya.","Mulai membiasakan diri untuk disiplin, rapi, membersihkan dan merawat tubuh, menjaga tingkah laku dan perkataan dalam semua aktivitas kesehariannya","Memperhatikan kesehatan jasmani, mental, dan rohani dengan melakukan aktivitas fisik, sosial, dan ibadah.","Mengidentifikasi pentingnya menjaga keseimbangan kesehatan jasmani, mental, dan rohani serta berupaya menyeimbangkan aktivitas fisik, sosial dan ibadah.","Melakukan aktivitas fisik, sosial, dan ibadah secara seimbang."]
["1.3","Mengutamakan persamaan dengan orang lain dan menghargai perbedaan","Mengenali hal-hal yang sama dan berbeda yang dimiliki diri dan temannya dalam berbagai hal. Membiasakan mendengarkan pendapat temannya, baik itu sama ataupun berbeda dengan pendapat yang dimilikinya dan mengekspresikannya secara wajar.","Mengenali hal-hal yang sama dan berbeda yang dimiliki diri dan temannya dalam berbagai hal, serta memberikan respon secara positif.","Terbiasa mengidentifikasi hal-hal yang sama dan berbeda yang dimiliki diri dan temannya dalam berbagai hal serta memberikan respon secara positif.","Mengidentifikasi kesamaan dengan orang lain sebagai perekat hubungan sosial dan mewujudkannya dalam aktivitas kelompok. Mulai mengenal berbagai kemungkinan interpretasi dan cara pandang yang berbeda ketika dihadapkan dengan dilema.","Mengenal perspektif dan emosi/perasaan dari sudut pandang orang atau kelompok lain yang tidak pernah dijumpai atau dikenalnya. Mengutamakan persamaan dan menghargai perbedaan sebagai alat pemersatu dalam keadaan konflik atau perdebatan.","Mengidentifikasi hal yang menjadi permasalahan bersama, memberikan alternatif solusi untuk menjembatani perbedaan dengan mengutamakan kemanusiaan."]
[null,"Berempati kepada orang lain","Mengenali emosi, minat, dan kebutuhan orang-orang terdekat dan membiasakan meresponnya secara positif.","Mengidentifikasi emosi, minat dan kebutuhan orang-orang terdekat dan meresponnya secara positif.","Terbiasa memberikan apresiasi di lingkungan sekolah dan masyarakat","Mulai memandang sesuatu dari perspektif orang lain serta mengidentifikasi kebaikan dan kelebihan orang sekitarnya.","Memahami perasaan dan sudut pandang orang dan/atau kelompok lain yang tidak pernah dikenalnya.","Memahami dan menghargai perasaan dan sudut pandang orang dan/atau kelompok lain."]
["1.4","Memahami Keterhubungan Ekosistem Bumi","Mengenal berbagai ciptaan Tuhan","Mengidentifikasi berbagai ciptaan Tuhan","Memahami keterhubungan antara satu ciptaan dengan ciptaan Tuhan yang lainnya","Memahami konsep harmoni dan mengidentifikasi adanya saling ketergantungan antara berbagai ciptaan Tuhan","Memahami konsep sebab-akibat di antara berbagai ciptaan Tuhan dan mengidentifikasi berbagai sebab yang mempunyai dampak baik atau buruk, langsung maupun tidak langsung, terhadap alam semesta.","Mengidentifikasi masalah lingkungan hidup di tempat ia tinggal dan melakukan langkah-langkah konkrit yang bisa dilakukan untuk menghindari kerusakan dan menjaga keharmonisan ekosistem yang ada di lingkungannya."]
[null,"Menjaga Lingkungan Alam Sekitar","Membiasakan bersyukur atas karunia lingkungan alam sekitar dengan menjaga kebersihan dan merawat lingkungan alam sekitarnya.","Membiasakan bersyukur atas lingkungan alam sekitar dan berlatih untuk menjaganya","Terbiasa memahami tindakan-tindakan yang ramah dan tidak ramah lingkungan serta membiasakan diri untuk berperilaku ramah lingkungan","Mewujudkan rasa syukur dengan terbiasa berperilaku ramah lingkungan dan memahami akibat perbuatan tidak ramah lingkungan dalam lingkup kecil maupun besar.","Mewujudkan rasa syukur dengan berinisiatif untuk menyelesaikan permasalahan lingkungan alam sekitarnya dengan mengajukan alternatif solusi dan mulai menerapkan solusi tersebut.","Mewujudkan rasa syukur dengan membangun kesadaran peduli lingkungan alam dengan menciptakan dan mengimplementasikan solusi dari permasalahan lingkungan yang ada."]
["1.5","Melaksanakan Hak dan Kewajiban sebagai Warga Negara Indonesia","Mengenali hak dan tanggungjawabnya di rumah dan sekolah, serta kaitannya dengan keimanan kepada Tuhan YME.","Mengidentifikasi hak dan tanggung jawabnya di rumah, sekolah, dan lingkungan sekitar serta kaitannya dengan keimanan kepada Tuhan YME.","Mengidentifikasi hak dan tanggung jawab orang-orang di sekitarnya serta kaitannya dengan keimanan kepada Tuhan YME.","Mengidentifikasi dan memahami peran, hak, dan kewajiban dasar sebagai warga negara serta kaitannya dengan keimanan kepada Tuhan YME dan secara sadar mempraktikkannya dalam kehidupan sehari-hari.","Menganalisa peran, hak, dan kewajiban sebagai warga negara, memahami perlunya mengutamakan kepentingan umum di atas kepentingan pribadi sebagai wujud dari keimanannya kepada Tuhan YME.","Memperoleh hak dan melaksanakan kewajiban kewarganegaraan dan terbiasa mendahulukan kepentingan umum di atas kepentingan pribadi sebagai wujud dari keimanannya kepada Tuhan YME."]
["2.1","Mendalami budaya dan identitas budaya","Mengenali identitas diri dan kebiasaan-kebiasaan budaya dalam keluarga","Mengidentifikasi dan mendeskripsikan ide-ide tentang dirinya dan beberapa macam kelompok di lingkungan sekitarnya","Mengidentifikasi dan mendeskripsikan ide-ide tentang dirinya dan berbagai macam kelompok di lingkungan sekitarnya, serta cara orang lain berperilaku dan berkomunikasi dengannya.","Mengidentifikasi dan mendeskripsikan keragaman budaya di sekitarnya; serta menjelaskan peran budaya dan Bahasa dalam membentuk identitas dirinya.","Menjelaskan perubahan budaya seiring waktu dan sesuai konteks, baik dalam skala lokal, regional, dan nasional. Menjelaskan identitas diri yang terbentuk dari budaya bangsa.","Menganalisis pengaruh keanggotaan kelompok lokal, regional, nasional, dan global terhadap pembentukan identitas, termasuk identitas dirinya. Mulai menginternalisasi identitas diri sebagai bagian dari budaya bangsa."]
[null,"Mengeksplorasi dan membandingkan pengetahuan budaya, kepercayaan, serta praktiknya","Mengenali identitas orang lain dan kebiasaan-kebiasaannya","Mengidentifikasi dan mendeskripsikan praktik keseharian diri dan budayanya","Mengidentifikasi dan membandingkan praktik keseharian diri dan budayanya dengan orang lain di tempat dan waktu/era yang berbeda.","Mendeskripsikan dan membandingkan pengetahuan, kepercayaan, dan praktik dari berbagai kelompok budaya.","Memahami dinamika budaya yang mencakup pemahaman, kepercayaan, dan praktik keseharian dalam konteks personal dan sosial.","Menganalisis dinamika budaya yang mencakup pemahaman, kepercayaan, dan praktik keseharian dalam rentang waktu yang panjang dan konteks yang luas."]
[null,"Menumbuhkan rasa menghormati terhadap keanekaragaman budaya","Membiasakan untuk menyayangi dan menghormati budaya-budaya yang berbeda dari dirinya.","Mendeskripsikan pengalaman dan pemahaman hidup bersama-sama dalam kemajemukan.","Memahami bahwa kemajemukan dapat memberikan kesempatan untuk mendapatkan pengalaman dan pemahaman yang baru.","Mengidentifikasi peluang dan tantangan yang muncul dari keragaman budaya di Indonesia.","Memahami pentingnya melestarikan dan merayakan tradisi budaya untuk mengembangkan identitas pribadi, sosial, dan bangsa Indonesia serta mulai berupaya melestarikan budaya dalam kehidupan sehari-hari.","Memahami pentingnya saling menghormati dalam mempromosikan pertukaran budaya dan kolaborasi dalam dunia yang saling terhubung serta menunjukkannya dalam perilaku."]
["2.2","Berkomunikasi antar budaya","Menggunakan berbagai macam cara yang bermakna untuk mengungkapkan perasaan dan pikiran.","Mengenali bahwa diri dan orang lain menggunakan kata, gambar, dan bahasa tubuh yang dapat memiliki makna yang berbeda di lingkungan sekitarnya","Mendeskripsikan penggunaan kata, tulisan dan bahasa tubuh yang memiliki makna yang berbeda di lingkungan sekitarnya dan dalam suatu budaya tertentu.","Memahami persamaan dan perbedaan cara komunikasi baik di dalam maupun antar kelompok budaya.","Mengeksplorasi pengaruh budaya terhadap penggunaan bahasa serta dapat mengenali risiko dalam berkomunikasi antar budaya.","Menganalisis hubungan antara bahasa, pikiran, dan konteks untuk memahami dan meningkatkan komunikasi antar budaya yang berbeda-beda."]
[null,"Mempertimbangkan dan menumbuhkan berbagai perspektif","Menjalin interaksi sosial yang positif dalam lingkungan keluarga dan sekolah","Mengekspresikan pandangannya terhadap topik yang umum dan mendengarkan sudut pandang orang lain yang berbeda dari dirinya dalam lingkungan keluarga dan sekolah","Mengekspresikan pandangannya terhadap topik yang umum dan dapat mengidentifikasi sudut pandang orang lain. Mendengarkan dan membayangkan sudut pandang orang lain yang berbeda dari dirinya pada situasi di ranah sekolah, keluarga, dan lingkungan sekitar.","Membandingkan beragam perspektif untuk memahami permasalahan sehari-hari. Membayangkan dan mendeskripsikan situasi komunitas yang berbeda dengan dirinya ke dalam situasi dirinya dalam konteks lokal dan regional.","Menjelaskan asumsi-asumsi yang mendasari perspektif tertentu. Membayangkan dan mendeskripsikan perasaan serta motivasi komunitas yang berbeda dengan dirinya yang berada dalam situasi yang sulit.","Menyajikan pandangan yang seimbang mengenai permasalahan yang dapat menimbulkan pertentangan pendapat. Memperlakukan orang lain dan budaya yang berbeda darinya dalam posisi setara dengan diri dan budayanya, serta bersedia memberikan pertolongan ketika orang lain berada dalam situasi sulit."]
["2.3","Refleksi terhadap pengalaman kebinekaan","Menunjukkan kesadaran untuk menerima teman yang berbeda budaya dengan bermain bersama.","Menyebutkan apa yang telah dipelajari tentang orang lain dari interaksinya dengan kemajemukan budaya di lingkungan sekolah dan rumah","Menyebutkan apa yang telah dipelajari tentang orang lain dari interaksinya dengan kemajemukan budaya di lingkungan sekitar.","Menjelaskan apa yang telah dipelajari dari interaksi dan pengalaman dirinya dalam lingkungan yang beragam.","Merefleksikan secara kritis gambaran berbagai kelompok budaya yang ditemui dan cara meresponnya.","Merefleksikan secara kritis dampak dari pengalaman hidup di lingkungan yang beragam terkait dengan perilaku, kepercayaan serta tindakannya terhadap orang lain."]
[null,"Menghilangkan stereotip dan prasangka","Mengenali orang-orang di sekitarnya berdasarkan ciri-ciri atau atribut tertentu","mengenali perbedaan tiap orang atau kelompok dan menganggapnya sebagai kewajaran","Mengkonfirmasi dan mengklarifikasi stereotip dan prasangka yang dimilikinya tentang orang atau kelompokdi sekitarnya untuk mendapatkan pemahaman yang lebih baik","Mengkonfirmasi dan mengklarifikasi stereotip dan prasangka yang dimilikinya tentang orang atau kelompok di sekitarnya untuk mendapatkan pemahaman yang lebih baik serta mengidentifikasi pengaruhnya terhadap individu dan kelompok di lingkungan sekitarnya","Mengkonfirmasi, mengklarifikasi dan menunjukkan sikapmenolak stereotip serta prasangka tentang gambaran identitas kelompok dan suku bangsa.","Mengkritik dan menolak stereotip serta prasangka tentang gambaran identitas kelompok dan suku bangsa serta berinisiatif mengajak orang lain untuk menolak stereotip dan prasangka."]
[null,"Menyelaraskan perbedaan budaya","Mengetahui adanya budaya-budaya yang berbeda di lingkungan sekitar.","Mengidentifikasi perbedaan-perbedaan budaya yang konkrit di lingkungan sekitar","Mengenali bahwa perbedaan budaya mempengaruhi pemahaman antarindividu.","Mencari titik temu nilai budaya yang beragam untuk menyelesaikan permasalahan bersama.","Mengkonfirmasi, mengklarifikasi dan menunjukkan sikapmenolak stereotip serta prasangka tentang gambaran identitas kelompok dan suku bangsa.","Mengetahui tantangan dan keuntungan hidup dalam lingkungan dengan budaya yang beragam, serta memahami pentingnya kerukunan antar budaya dalam kehidupan bersama yang harmonis."]
["2.4","Aktif membangun masyarakat yang inklusif, adil, dan berkelanjutan","Menjalin pertemanan tanpa memandang perbedaan diri dan temannya","Menjalin pertemanan tanpa memandang perbedaan agama, suku, ras, jenis kelamin, dan perbedaan lainnya, dan mengenal masalah-masalah sosial, ekonomi, dan lingkungan di lingkungan sekitarnya","Mengidentifikasi cara berkontribusi terhadap lingkungan sekolah, rumah dan lingkungan sekitarnya yang inklusif, adil dan berkelanjutan","Membandingkan beberapa tindakan dan praktik perbaikan lingkungan sekolah yang inklusif, adil, dan berkelanjutan, dengan mempertimbangkan dampaknya secara jangka panjang terhadap manusia, alam, dan masyarakat","Mengidentifikasi masalah yang ada di sekitarnya sebagai akibat dari pilihan yang dilakukan oleh manusia, serta dampak masalah tersebut terhadap sistem ekonomi, sosial dan lingkungan, serta mencari solusi yang memperhatikan prinsip-prinsip keadilan terhadap manusia, alam dan masyarakat","Berinisiatif melakukan suatu tindakan berdasarkan identifikasi masalah untuk mempromosikan keadilan, keamanan ekonomi, menopang ekologi dan demokrasi sambil menghindari kerugian jangka panjang terhadap manusia, alam ataupun masyarakat."]
[null,"Berpartisipasi dalam proses pengambilan keputusan bersama","Mulai berpartisipasi menentukan beberapa pilihan untuk keperluan bersama dalam lingkungan kecil","Mengidentifikasi pilihan-pilihan berdasarkan kebutuhan dirinya dan orang lain ketika membuat keputusan","Berpartisipasi menentukan beberapa pilihan untuk keperluan bersama berdasarkan kriteria sederhana","Berpartisipasi dalam menentukan kriteria yang disepakati bersama untuk menentukan pilihan dan keputusan untuk kepentingan bersama","Berpartisipasi dalam menentukan kriteria dan metode yang disepakati bersama untuk menentukan pilihan dan keputusan untuk kepentingan bersama melalui proses bertukar pikiran secara cermat dan terbuka dengan panduan pendidik","Berpartisipasi menentukan pilihan dan keputusan untuk kepentingan bersama melalui proses bertukar pikiran secara cermat dan terbuka secara mandiri"]
[null,"Memahami peran individu dalam demokrasi","Mulai mengenali keberadaan dan perannya dalam lingkungan keluarga dan sekolah","Mengidentifikasi peran, hak dan kewajiban warga dalam masyarakat demokratis","Memahami konsep hak dan kewajiban, serta implikasinya terhadap perilakunya.","Memahami konsep hak dan kewajiban, serta implikasinya terhadap perilakunya. Menggunakan konsep ini untuk menjelaskan perilaku diri dan orang sekitarnya","Memahami konsep hak dan kewajiban serta implikasinya terhadap ekspresi dan perilakunya. Mulai aktif mengambil sikap dan langkah untuk melindungi hak orang/kelompok lain.","Memahami konsep hak dan kewajiban, serta implikasinya terhadap ekspresi dan perilakunya. Mulai mencari solusi untuk dilema terkait konsep hak dan kewajibannya."]
["3.1","Kerja sama","Terbiasa bekerja bersama dalam melakukah kegiatan dengan kelompok (melibatkan dua atau lebih orang).","Menerima dan melaksanakan tugas serta peran yang diberikan kelompok dalam sebuah kegiatan bersama.","Menampilkan tindakan yang sesuai dengan harapan dan tujuan kelompok.","Menunjukkan ekspektasi (harapan) positif kepada orang lain dalam rangka mencapai tujuan kelompok di lingkungan sekitar (sekolah dan rumah).","Menyelaraskan tindakan sendiri dengan tindakan orang lain untuk melaksanakan kegiatan dan mencapai tujuan kelompok di lingkungan sekitar, serta memberi semangat kepada orang lain untuk bekerja efektif dan mencapai tujuan bersama.","Membangun tim dan mengelola kerjasama untuk mencapai tujuan bersama sesuai dengan target yang sudah ditentukan."]
[null,"Komunikasi untuk mencapai tujuan bersama","Menyimak informasi sederhana dan mengungkapkannya dalam bahasa lisan","Memahami informasi sederhana dari orang lain dan menyampaikan informasi sederhana kepada orang lain menggunakan kata-katanya sendiri.","Memahami informasi yang disampaikan (ungkapan pikiran, perasaan, dan keprihatinan) orang lain dan menyampaikan informasi secara akurat menggunakan berbagai simbol dan media","Memahami informasi dari berbagai sumber dan menyampaikan pesan menggunakan berbagai simbol dan media secara efektif kepada orang lain untuk mencapai tujuan bersama","Memahami informasi, gagasan, emosi, keterampilan dan keprihatinan yang diungkapkan oleh orang lain menggunakan berbagai simbol dan media secara efektif, serta memanfaatkannya untuk meningkatkan kualitas hubungan interpersonal guna mencapai tujuan bersama.","Aktif menyimak untuk memahami dan menganalisis informasi, gagasan, emosi, keterampilan dan keprihatinan yang disampaikan oleh orang lain dan kelompok menggunakan berbagai simbol dan media secara efektif, serta menggunakan berbagai strategi komunikasi untuk menyelesaikan masalah guna mencapai berbagai tujuan bersama."]
[null,"Saling-ketergantungan positif","Mengenali dan menyampaikan kebutuhan-kebutuhan diri sendiri dan orang lain","Mengenali kebutuhan-kebutuhan diri sendiri yang memerlukan orang lain dalam pemenuhannya.","Menyadari bahwa setiap orang membutuhkan orang lain dalam memenuhi kebutuhannya dan perlunya saling membantu","Menyadari bahwa meskipun setiap orang memiliki otonominya masing-masing, setiap orang membutuhkan orang lain dalam memenuhi kebutuhannya.","Mendemonstrasikan kegiatan kelompok yang menunjukkan bahwa anggota kelompok dengan kelebihan dan kekurangannya masing-masing perlu dan dapat saling membantu memenuhi kebutuhan.","Menyelaraskan kapasitas kelompok agar para anggota kelompok dapat saling membantu satu sama lain memenuhi kebutuhan mereka baik secara individual maupun kolektif."]
[null,"Koordinasi Sosial","Melaksanakan aktivitas bermain sesuai dengan kesepakatan bersama dan saling mengingatkan adanya kesepakatan tersebut.","Melaksanakan aktivitas kelompok sesuai dengan kesepakatan bersama dengan bimbingan, dan saling mengingatkan adanya kesepakatan tersebut.","Menyadari bahwa dirinya memiliki peran yang berbeda dengan orang lain/temannya, serta mengetahui konsekuensi perannya terhadap ketercapaian tujuan.","Menyelaraskan tindakannya sesuai dengan perannya dan mempertimbangkan peran orang lain untuk mencapai tujuan bersama.","Membagi peran dan menyelaraskan tindakan dalam kelompok serta menjaga tindakan agar selaras untuk mencapai tujuan bersama.","Menyelaraskan dan menjaga tindakan diri dan anggota kelompok agar sesuai antara satu dengan lainnya serta menerima konsekuensi tindakannya dalam rangka mencapai tujuan bersama."]
["3.2","Tanggap terhadap lingkungan Sosial","Mulai mengenali dan mengapresiasi orang-orang di rumah dan sekolah, untuk merespon kebutuhan di rumah dan sekolah.","Peka dan mengapresiasi orang-orang di lingkungan sekitar, kemudian melakukan tindakan sederhana untuk mengungkapkannya.","Peka dan mengapresiasi orang-orang di lingkungan sekitar, kemudian melakukan tindakan untuk menjaga keselarasan dalam berelasi dengan orang lain.","Tanggap terhadap lingkungan sosial sesuai dengan tuntutan peran sosialnya dan menjaga keselarasan dalam berelasi dengan orang lain.","Tanggap terhadap lingkungan sosial sesuai dengan tuntutan peran sosialnya dan berkontribusi sesuai dengan kebutuhan masyarakat.","Tanggap terhadap lingkungan sosial sesuai dengan tuntutan peran sosialnya dan berkontribusi sesuai dengan kebutuhan masyarakat untuk menghasilkan keadaan yang lebih baik."]
[null,"Persepsi sosial","Mengenali berbagai reaksi orang lain di lingkungan sekitar.","Mengenali berbagai reaksi orang lain di lingkungan sekitar dan penyebabnya.","Memahami berbagai alasan orang lain menampilkan respon tertentu","Menerapkan pengetahuan mengenai berbagai reaksi orang lain dan penyebabnya dalam konteks keluarga, sekolah, serta pertemanan dengan sebaya.","Menggunakan pengetahuan tentang sebab dan alasan orang lain menampilkan reaksi tertentu untuk menentukan tindakan yang tepat agar orang lain menampilkan respon yang diharapkan.","Melakukan tindakan yang tepat agar orang lain merespon sesuai dengan yang diharapkan dalam rangka penyelesaian pekerjaan dan pencapaian tujuan."]
["3.3","Berbagi","\nMulai membiasakan untuk berbagi kepada orangorang di sekitar.","Memberi dan menerima hal yang dianggap berharga dan penting kepada/dari orang-orang di lingkungan sekitar.","\nMemberi dan menerima hal yang dianggap penting dan berharga kepada/dari orang-orang di lingkungan sekitar baik yang dikenal maupun tidak dikenal.","Memberi dan menerima hal yang dianggap penting dan berharga kepada/dari orang-orang di lingkungan luas/masyarakat baik yang dikenal maupun tidak dikenal.","\nMengupayakan memberi hal yang dianggap penting dan berharga kepada masyarakat yang membutuhkan bantuan di sekitar tempat tinggal","Mengupayakan memberi hal yang dianggap penting dan berharga kepada orang-orang yang membutuhkan di masyarakat yang lebih luas (negara, dunia)."]
["4.1","Mengenali kualitas dan minat diri serta tantangan yang dihadapi","Mengenali kemampuan dan minat/kesukaan diri serta menerima keberadaaan dan keunikan diri sendiri","Mengidentifikasi dan menggambarkan kemampuan, prestasi, dan ketertarikannya secara subjektif","Mengidentifikasi kemampuan, prestasi, dan ketertarikannya serta tantangan yang dihadapi berdasarkan kejadian-kejadian yang dialaminya dalam kehidupan sehari-hari.","Menggambarkan pengaruh kualitas dirinya terhadap pelaksanaan dan hasil belajar; serta mengidentifikasi kemampuan yang ingin dikembangkan dengan mempertimbangkan tantangan yang dihadapinya dan umpan balik dari orang dewasa","Membuat penilaian yang realistis terhadap kemampuan dan minat , serta prioritas pengembangan diri berdasarkan pengalaman belajar dan aktivitas lain yang dilakukannya.","Mengidentifikasi kekuatan dan tantangan-tantangan yang akan dihadapi pada konteks pembelajaran, sosial dan pekerjaan yang akan dipilihnya di masa depan."]
[null,"Mengembangkan refleksi diri","Menceritakan pengalaman belajarnya di rumah maupun di sekolah.","Melakukan refleksi untuk mengidentifikasi kekuatan dan kelemahan, serta prestasi dirinya.","Melakukan refleksi untuk mengidentifikasi kekuatan, kelemahan, dan prestasi dirinya, serta situasi yang dapat mendukung dan menghambat pembelajaran dan pengembangan dirinya","Melakukan refleksi untuk mengidentifikasi faktor-faktor di dalam maupun di luar dirinya yang dapat mendukung/menghambatnya dalam belajar dan mengembangkan diri; serta mengidentifikasi cara-cara untuk mengatasi kekurangannya.","Memonitor kemajuan belajar yang dicapai serta memprediksi tantangan pribadi dan akademik yang akan muncul berlandaskan pada pengalamannya untuk mempertimbangkan strategi belajar yang sesuai.","Melakukan refleksi terhadap umpan balik dari teman, guru, dan orang dewasa lainnya, serta informasi-informasi karir yang akan dipilihnya untuk menganalisis karakteristik dan keterampilan yang dibutuhkan dalam menunjang atau menghambat karirnya di masa depan."]
["4.2","Regulasi emosi","Mengenali emosi-emosi yang dirasakan dan situasi yang menyebabkan-nya, serta mulai belajar mengeskpresikan emosi secara wajar","Mengidentifikasi perbedaan emosi yang dirasakannya dan situasi-situasi yang menyebabkan-nya; serta mengekspresi-kan secara wajar","Mengetahui adanya pengaruh orang lain, situasi, dan peristiwa yang terjadi terhadap emosi yang dirasakannya; serta berupaya untuk mengekspresikan emosi secara tepat dengan mempertimbangkan perasaan dan kebutuhan orang lain disekitarnya","Memahami perbedaan emosi yang dirasakan dan dampaknya terhadap proses belajar dan interaksinya dengan orang lain; serta mencoba cara-cara yang sesuai untuk mengelola emosi agar dapat menunjang aktivitas belajar dan interaksinya dengan orang lain.","Memahami dan memprediksi konsekuensi dari emosi dan pengekspresiannya dan menyusun langkah-langkah untuk mengelola emosinya dalam pelaksanaan belajar dan berinteraksi dengan orang lain.","Mengendalikan dan menyesuaikan emosi yang dirasakannya secara tepat ketika menghadapi situasi yang menantang dan menekan pada konteks belajar, relasi, dan pekerjaan."]
[null,"Penetapan tujuan belajar, prestasi, dan pengembangan diri serta rencana strategis untuk mencapainya","Menceritakan aktivitas yang akan dilakukan untuk menyelesaikan tugas yang diberikan","Menetapkan target belajar dan merencanakan waktu dan tindakan belajar yang akan dilakukannya.","Menjelaskan pentingnya memiliki tujuan dan berkomitmen dalam mencapainya serta mengeksplorasi langkah-langkah yang sesuai untuk mencapainya","Menilai faktor-faktor (kekuatan dan kelemahan) yang ada pada dirinya dalam upaya mencapai tujuan belajar, prestasi, dan pengembangan dirinya serta mencoba berbagai strategi untuk mencapainya.","Merancang strategi yang sesuai untuk menunjang pencapaian tujuan belajar, prestasi, dan pengembangan diri dengan mempertimbangkan kekuatan dan kelemahan dirinya, serta situasi yang dihadapi.","Mengevaluasi efektivitas strategi pembelajaran digunakannya, serta menetapkan tujuan belajar, prestasi, dan pengembangan diri secara spesifik dan merancang strategi yang sesuai untuk menghadapi tantangan-tantangan yang akan dihadapi pada konteks pembelajaran, sosial dan pekerjaan yang akan dipilihnya di masa depan."]
[null,"Menunjukkan inisiatif dan bekerja secara mandiri","Mencoba mengerjakan berbagai tugas sederhana dengan pengawasan dan dukungan orang dewasa","Berinisiatif untuk mengerjakan tugas-tugas rutin secara mandiri dibawah pengawasan dan dukungan orang dewasa","Mempertimbangkan, memilih dan mengadopsi berbagai strategi dan mengidentifikasi sumber bantuan yang diperlukan serta berinisiatif menjalankannya untuk mendapatkan hasil belajar yang diinginkan.","Memahami arti penting bekerja secara mandiri serta inisiatif untuk melakukannya dalam menunjang pembelajaran dan pengembangan dirinya","Mengkritisi efektivitas dirinya dalam bekerja secara mandiri dengan mengidentifikasi hal-hal yang menunjang maupun menghambat dalam mencapai tujuan.","Menentukan prioritas pribadi, berinisiatif mencari dan mengembangkan pengetahuan dan keterampilan yang spesifik sesuai tujuan di masa depan."]
[null,"Mengembangkan pengendalian dan disiplin diri","Mengatur diri agar dapat menyelesaikan kegiatannya hingga tuntas.","Melaksanakan kegiatan belajar di kelas dan menyelesaikan tugas-tugas dalam waktu yang telah disepakati.","Menjelaskan pentingnya mengatur diri secara mandiri dan mulai menjalankan kegiatan dan tugas yang telah sepakati secara mandiri","Mengidentifikasi faktor-faktor yang dapat mempengaruhi kemampuan dalam mengelola diri dalam pelaksanaan aktivitas belajar dan pengembangan dirinya.","Berkomitmen dan menjaga konsistensi pencapaian tujuan yang telah direncanakannya untuk mencapai tujuan belajar dan pengembangan diri yang diharapkannya","Melakukan tindakan-tindakan secara konsisten guna mencapai tujuan karir dan pengembangan dirinya di masa depan, serta berusaha mencari dan melakukan alternatif tindakan lain yang dapat dilakukan ketika menemui hambatan."]
[null,"Percaya diri, tangguh (resilient), dan adaptif","Berani mencoba, adaptif dalam situasi baru, dan mencoba untuk tidak mudah menyerah saat mendapatkan tantangan","Berani mencoba dan adaptif menghadapi situasi baru serta bertahan mengerjakan tugas-tugas yang disepakati hingga tuntas","Tetap bertahan mengerjakan tugas ketika dihadapkan dengan tantangan dan berusaha menyesuaikan strateginya ketika upaya sebelumnya tidak berhasil.","Menyusun, menyesuaikan, dan mengujicobakan berbagai strategi dan cara kerjanya untuk membantu dirinya dalam penyelesaian tugas yang menantang","Membuat rencana baru dengan mengadaptasi, dan memodifikasi strategi yang sudah dibuat ketika upaya sebelumnya tidak berhasil, serta menjalankan kembali tugasnya dengan keyakinan baru.","Menyesuaikan dan mulai menjalankan rencana dan strategi pengembangan dirinya dengan mempertimbangkan minat dan tuntutan pada konteks belajar maupun pekerjaan yang akan dijalaninya di masa depan, serta berusaha untuk mengatasi tantangan-tantangan yang ditemui.\n\n\nProfil Pelajar Pancasila\nPilih Fase\n\n\nFase E\n\nDimensi & Elemen\nBeriman, Bertakwa Kepada Tuhan Yang Maha Esa, dan Berakhlak Mulia\nBerkebinekaan Global\nBergotong-Royong\nMandiri\nElemen\n\n\nPemahaman diri dan situasi yang dihadapi\n\n\nRegulasi Diri\n\nBernalar Kritis\nKreatif"]
["5.1","Mengajukan pertanyaan","Bertanya untuk memenuhi rasa ingin tahu terhadap diri dan lingkungannya.","Mengajukan pertanyaan untuk menjawab keingintahuannya dan untuk mengidentifikasi suatu permasalahan mengenai dirinya dan lingkungan sekitarnya.","Mengajukan pertanyaan untuk mengidentifikasi suatu permasalahan dan mengkonfirmasi pemahaman terhadap suatu permasalahan mengenai dirinya dan lingkungan sekitarnya.","Mengajukan pertanyaan untuk membandingkan berbagai informasi dan untuk menambah pengetahuannya.","Mengajukan pertanyaan untuk klarifikasi dan interpretasi informasi, serta mencari tahu penyebab dan konsekuensi dari informasi tersebut.","Mengajukan pertanyaan untuk menganalisis secara kritis permasalahan yang kompleks dan abstrak."]
[null,"Mengidentifikasi, mengklarifikasi, dan mengolah informasi dan gagasan","Mengidentifikasi dan mengolah informasi dan gagasan sederhana.","Mengidentifikasi dan mengolah informasi dan gagasan","Mengumpulkan, mengklasifikasikan, membandingkan dan memilih informasi dan gagasan dari berbagai sumber.","Mengumpulkan, mengklasifikasikan, membandingkan, dan memilih informasi dari berbagai sumber, serta memperjelas informasi dengan bimbingan orang dewasa.","Mengidentifikasi, mengklarifikasi, dan menganalisis informasi yang relevan serta memprioritaskan beberapa gagasan tertentu.","Secara kritis mengklarifikasi serta menganalisis gagasan dan informasi yang kompleks dan abstrak dari berbagai sumber. Memprioritaskan suatu gagasan yang paling relevan dari hasil klarifikasi dan analisis."]
["5.2","Menganalisis dan mengevaluasi penalaran dan prosedurnya","Menyebutkan alasan dari pilihan atau keputusannya","Melakukan penalaran konkrit dan memberikan alasan dalam menyelesaikan masalah dan mengambil keputusan","Menjelaskan alasan yang relevan dalam penyelesaian masalah dan pengambilan keputusan","Menjelaskan alasan yang relevan dan akurat dalam penyelesaian masalah dan pengambilan keputusan","Membuktikan penalaran dengan berbagai argumen dalam mengambil suatu simpulan atau keputusan.","Menganalisis dan mengevaluasi penalaran yang digunakannya dalam menemukan dan mencari solusi serta mengambil keputusan."]
["5.3","Merefleksi dan mengevaluasi pemikirannya sendiri","Menyampaikan apa yang dipikirkan dengan singkat","Menyampaikan apa yang sedang dipikirkan secara terperinci","Menyampaikan apa yang sedang dipikirkan dan menjelaskan alasan dari hal yang dipikirkan","Memberikan alasan dari hal yang dipikirkan, serta menyadari kemungkinan adanya bias pada pemikirannya sendiri\n\nProfil Pelajar Pancasila\nPilih Fase\n\n\nFase C\n\nDimensi & Elemen","Menjelaskan asumsi yang digunakan, menyadari kecenderungan dan konsekuensi bias pada pemikirannya, serta berusaha mempertimbangkan perspektif yang berbeda.","Menjelaskan alasan untuk mendukung pemikirannya dan memikirkan pandangan yang mungkin berlawanan dengan pemikirannya dan mengubah pemikirannya jika diperlukan."]
["6.1","Menghasilkan gagasan yang orisinal","Menggabungkan beberapa gagasan menjadi ide atau gagasan sederhana dan imajinatif yang bermakna untuk mengekspresikan pikiran dan/atau perasaannya.","Menggabungkan beberapa gagasan menjadi ide atau gagasan imajinatif yang bermakna untuk mengekspresikan pikiran dan/atau perasaannya.","Memunculkan gagasan imajinatif baru yang bermakna dari beberapa gagasan yang berbeda sebagai ekspresi pikiran dan/atau perasaannya.","Mengembangkan gagasan yang ia miliki untuk membuat kombinasi hal yang baru dan imajinatif untuk mengekspresikan pikiran dan/atau perasaannya.","Menghubungkan gagasan yang ia miliki dengan informasi atau gagasan baru untuk menghasilkan kombinasi gagasan baru dan imajinatif untuk mengekspresikan pikiran dan/atau perasaannya.","Menghasilkan gagasan yang beragam untuk mengekspresikan pikiran dan/atau perasaannya, menilai gagasannya, serta memikirkan segala risikonya dengan mempertimbangkan banyak perspektif seperti etika dan nilai kemanusiaan ketika gagasannya direalisasikan."]
["6.2","Menghasilkan karya dan tindakan yang orisinal","Mengeksplorasi dan mengekspresikan pikiran dan/atau perasaannya dalam bentuk karya dan/atau tindakan sederhana serta mengapresiasi karya dan tindakan yang dihasilkan","Mengeksplorasi dan mengekspresikan pikiran dan/atau perasaannya dalam bentuk karya dan/atau tindakan serta mengapresiasi karya dan tindakan yang dihasilkan","Mengeksplorasi dan mengekspresikan pikiran dan/atau perasaannya sesuai dengan minat dan kesukaannya dalam bentuk karya dan/atau tindakan serta mengapresiasi karya dan tindakan yang dihasilkan","Mengeksplorasi dan mengekspresikan pikiran dan/atau perasaannya sesuai dengan minat dan kesukaannya dalam bentuk karya dan/atau tindakan serta mengapresiasi dan mengkritik karya dan tindakan yang dihasilkan","Mengeksplorasi dan mengekspresikan pikiran dan/atau perasaannya dalam bentuk karya dan/atau tindakan, serta mengevaluasinya dan mempertimbangkan dampaknya bagi orang lain","Mengeksplorasi dan mengekspresikan pikiran dan/atau perasaannya dalam bentuk karya dan/atau tindakan, serta mengevaluasinya dan mempertimbangkan dampak dan risikonya bagi diri dan lingkungannya dengan menggunakan berbagai perspektif."]
["6.3","Memiliki keluwesan berpikir dalam mencari alternatif solusi permasalahan","Menentukan pilihan dari beberapa alternatif yang diberikan","Mengidentifikasi gagasan-gagasan kreatif untuk menghadapi situasi dan permasalahan.","Membandingkan gagasan-gagasan kreatif untuk menghadapi situasi dan permasalahan.","berupaya mencari solusi alternatif saat pendekatan yang diambil tidak berhasil berdasarkan identifikasi terhadap situasi","Menghasilkan solusi alternatif dengan mengadaptasi berbagai gagasan dan umpan balik untuk menghadapi situasi dan permasalahan","Bereksperimen dengan berbagai pilihan secara kreatif untuk memodifikasi gagasan sesuai dengan perubahan situasi."]

{"sheet":"RAWDATA","index":27,"n_rows":81,"n_cols":9,"rows_kept":81,"cut":false,"hidden":false,"merged":[]}
[]
[]
[null,"DIMENSI","FASE","KELAS"]
[null,"Beriman, Bertakwa Kepada Tuhan Yang Maha Esa, dan Berakhlak Mulia ","PAUD","A1"]
[null,"Berkebhinekaan Global","A","A2"]
[null,"Bergotong-Royong","B","I"]
[null,"Mandiri","C","II"]
[null,"Bernalar Kritis","D","III"]
[null,"Kreatif","E","IV"]
[null,null,null,"V"]
[null,null,null,"VI"]
[null,"ELEMEN",null,"VII"]
[1,"Akhlak Beragama",null,"VIII"]
[null,"Akhlak Pribadi",null,"IX"]
[null,"Akhlak Kepada Manusia",null,"X"]
[null,"Akhlak Kepada Alam",null,"XI"]
[null,"Akhlak Bernegara",null,"XII"]
[2,"Mengenal dan menghargai budaya"]
[null,"Komunikasi dan interaksi antar budaya"]
[null,"Refleksi dan bertanggung jawab terhadap pengalaman kebinekaan"]
[null,"Berkeadilan Sosial"]
[3,"Kolaborasi"]
[null,"Kepedulian"]
[null,"Berbagi"]
[4,"Pemahaman diri dan situasi yang dihadapi"]
[null,"Regulasi Diri"]
[5,"Memperoleh dan memproses informasi dan gagasan"]
[null,"Menganalisis dan mengevaluasi penalaran dan prosedurnya"]
[null,"Refleksi pemikiran dan proses berpikir"]
[6,"Menghasilkan gagasan yang orisinal"]
[null,"Menghasilkan karya dan tindakan yang orisinal"]
[null,"Memiliki keluwesan berpikir dalam mencari alternatif solusi permasalahan"]
[]
[null,"SUBELEMEN","PAUD","A","B","C","D","E","F"]
["1.1","Mengenal dan Mencintai Tuhan Yang Maha Esa","Mengenal adanya  Tuhan Yang Maha \nEsa melalui sifat- sifat-Nya  ","Mengenal sifat-sifat \nutama Tuhan Yang \nMaha Esa bahwa Dia \nadalah Sang Pencipta \nyang Maha Pengasih \ndan Maha Penyayang \ndan mengenali \nkebaikan dirinya \nsebagai cerminan sifat \nTuhan ","Memahami sifat-sifat \nTuhan utama lainnya \ndan mengaitkan sifat-\nsifat tersebut dengan \nkonsep dirinya dan \nciptaan-Nya ","Memahami berbagai \nkualitas atau sifat-sifat \nTuhan Yang Maha Esa \nyang diutarakan dalam \nkitab suci agama \nmasing-masing dan \nmenghubungkan \nkualitas-kualitas positif \nTuhan dengan sikap \npribadinya, serta \nmeyakini firman Tuhan \nsebagai kebenaran. ","Memahami kehadiran \nTuhan dalam kehidupan \nsehari-hari serta \nmengaitkan \npemahamannya tentang \nkualitas atau sifat-sifat \nTuhan dengan konsep \nperan manusia di bumi \nsebagai makhluk Tuhan \nyang bertanggung jawab.","Menerapkan \npemahamannya tentang \nkualitas atau sifat-sifat \nTuhan dalam ritual \nibadahnya baik ibadah \nyang bersifat personal \nmaupun sosial. "]
[null,"Pemahaman Agama/Kepercayaan","Mengenal simbol-simbol dan ekspresi \nkeagamaan yang konkret ","Mengenal unsur-unsur utama agama/kepercayaan \n(ajaran, ritual keagamaan, kitab suci, dan orang suci/ \nutusan Tuhan YME). ","Mengenal unsur-unsur \nutama agama/kepercayaan \n(simbol-simbol keagamaan dan sejarah agama/ kepercayaan) ","Memahami unsur-unsur utama agama / kepercayaan, dan mengenali peran agama/kepercayaan dalam kehidupan serta memahami ajaran moral agama.","Memahami makna dan \nfungsi, unsur-unsur \nutama agama \n / kepercayaan dalam konteks Indonesia, \nmembaca kitab suci, serta memahami ajaran agama/ kepercayaan terkait hubungan sesama manusia dan alam semesta. ","Memahami struktur \norganisasi, unsur-unsur \nutama agama \n/ kepercayaan dalam konteks Indonesia, memahami kontribusi agama/kepercayaan terhadap peradaban \ndunia"]
[null,"Pelaksanaan Ritual Ibadah"]
["1.2","Integritas"]
[null,"Merawat Diri secara Fisik, Mental dan Spiritual"]
["1.3","Mengutamakan persamaan dengan orang lain dan menghargai perbedaan"]
[null,"Berempati kepada orang lain"]
["1.4","Memahami Keterhubungan Ekosistem Bumi"]
[null,"Menjaga Lingkungan Alam Sekitar"]
["1.5","Melaksanakan Hak dan Kewajiban sebagai Warga Negara Indonesia"]
[]
["2.1","Mendalami budaya dan identitas budaya"]
[null,"Mengeksplorasi dan membandingkan pengetahuan budaya, kepercayaan, serta praktiknya"]
[null,"Menumbuhkan rasa menghormati terhadap keanekaragaman budaya"]
["2.2","Berkomunikasi antar budaya"]
[null,"Mempertimbangkan dan menumbuhkan berbagai perspektif"]
["2.3","Refleksi terhadap pengalaman kebinekaan"]
[null,"Menghilangkan stereotip dan prasangka"]
[null,"Menyelaraskan perbedaan budaya"]
["2.4","Aktif membangun masyarakat yang inklusif, adil, dan berkelanjutan"]
[null,"Berpartisipasi dalam proses pengambilan keputusan bersama"]
[null,"Memahami peran individu dalam demokrasi"]
[]
["3.1","Kerja sama"]
[null,"Komunikasi untuk mencapai tujuan bersama"]
[null,"Saling-ketergantungan positif"]
[null,"Koordinasi Sosial"]
["3.2","Tanggap terhadap lingkungan Sosial"]
[null,"Persepsi sosial"]
["3.3","Berbagi"]
[]
["4.1","Mengenali kualitas dan minat diri serta tantangan yang dihadapi"]
[null,"Mengembangkan refleksi diri"]
["4.2","Regulasi emosi"]
[null,"Penetapan tujuan belajar, prestasi, dan pengembangan diri serta rencana strategis untuk mencapainya"]
[null,"Menunjukkan inisiatif dan bekerja secara mandiri"]
[null,"Mengembangkan pengendalian dan disiplin diri"]
[null,"Percaya diri, tangguh (resilient), dan adaptif"]
[]
["5.1","Mengajukan pertanyaan"]
[null,"Mengidentifikasi, mengklarifikasi, dan mengolah informasi dan gagasan"]
["5.2","Menganalisis dan mengevaluasi penalaran dan prosedurnya"]
["5.3","Merefleksi dan mengevaluasi pemikirannya sendiri"]
[]
["6.1","Menghasilkan gagasan yang orisinal"]
["6.2","Menghasilkan karya dan tindakan yang orisinal"]
["6.3","Memiliki keluwesan berpikir dalam mencari alternatif solusi permasalahan"]